Workbook

Sheet Print

Sheet Title Page

Sheet i
A1: THE HANOVER INSURANCE GROUP
A2: FINANCIAL SUPPLEMENT
B7: TABLE OF CONTENTS
B10: Business Description.......................................................................................... | C10: 1
B11: Financial Highlights.......................................................................................... | C11: 2
B12: Consolidated Financial Statements
B13: Income Statements.......................................................................................... | C13: 3
B14: Balance Sheets.................................................................................................. | C14: 4
B15: GAAP Underwriting Results
B16: Consolidated.............................................................................................. | C16: 5-6
B17: Commercial Lines.............................................................................................. | C17: 7-8
B18: Personal Lines.............................................................................................. | C18: 9-10
B19: Chaucer.............................................................................................................. | C19: 11-12
B20: Investments
B21: Net Investment Income and Yields.................................................................................. | C21: 13
B22: Investment Portfolio.......................................................................................... | C22: 14
B23: Credit Quality and Duration of Fixed Maturities.................................................................................................. | C23: 15
B24: Top 10 Corporate and Municipal Fixed Maturity Holdings.................................................................................................. | C24: 16
B25: Reconciliation of Operating Income (Loss) to Net Income (Loss) .......................................................................................... | C25: 17
B26: Other Information
B27: Non-GAAP Financial Measures.............................................................................................. | C27: 18
B28: Corporate Information.............................................................................................. | C28: 19
B29: Market and Dividend Information.............................................................................................. | C29: 19
B30: Financial Strength and Debt Ratings.............................................................................................. | C30: 19

Sheet 1
A1: THE HANOVER INSURANCE GROUP
A3: BASIS OF PRESENTATION
A6: BUSINESS DESCRIPTIONS
A8: COMMERCIAL LINES
A10: Commercial multiple peril coverage insures businesses against third party liability from accidents occurring on their premises or arising out of their operations, such as injuries sustained from products sold. It also insures business property for damage, such as that caused by fire, wind, hail, water damage (except for flooding), theft and vandalism.
A12: Commercial automobile coverage insures businesses against losses incurred from personal bodily injury, bodily injury to third parties, property damage to an insured’s vehicle, and property damage to other vehicles and property.
A14: Workers’ compensation coverage insures employers against employee medical and indemnity claims resulting from injuries related to work. Workers’ compensation policies are often written in conjunction with other commercial policies.
A16: Other Commercial Lines is comprised of inland marine, which insures businesses against physical losses to property, such as contractor’s equipment, builders’ risk and goods in transit. We also offer underwriting and managing of program business, including to under-served markets where there are specialty coverage or risk management needs. Other Commercial Lines also includes bonds, which provides businesses with contract surety coverage in the event of performance or payment claims, and commercial surety coverage related to fiduciary or regulatory obligations. Also included in Other Commercial Lines coverages are umbrella, general liability, fire, specialty property, and professional and management liability.
A18: PERSONAL LINES
A20: Personal automobile coverage insures individuals against losses incurred from personal bodily injury, bodily injury to third parties, property damage to an insured’s vehicle, and property damage to other vehicles and other property.
A22: Homeowners coverage insures individuals for losses to their residences and personal property, such as those caused by fire, wind, hail, water damage (except for flooding), theft and vandalism, and against third party liability claims.
A24: Other Personal Lines are comprised of personal inland marine (jewelry, art, etc.), umbrella, fire, personal watercraft, earthquake and other miscellaneous coverages.
A26: CHAUCER
A28: The Chaucer reporting segment represents THG's international business written through Lloyd's and includes international property, marine and aviation, energy, UK motor and international casualty and other coverages.
A30: Property coverage, including direct, facultative and treaty property accounts, insures property, including commercial, auto, and industrial businesses, against physical loss or damage and business interruption. The property treaty account comprises mainly catastrophe and per risk excess contract acceptances, with a small amount of proportional treaty and reinsurance assumed business.
A32: Marine and Aviation includes coverages that insure marine hull, excess of loss, liability, cargo and specie, in addition to political risk, war, and satellite business coverages. It also includes aviation coverages that insure airline hull and liability, general aviation and refuellers and products.
A34: Energy coverage, encompassing exploration and production, construction, liabilities downstream and renewables, insures energy businesses against physical damage, business interruption, control of well, seepage and pollution and liabilities. Energy also includes Nuclear, which predominantly provides coverage relating to power generation at nuclear power stations.
A36: UK Motor coverage insures the UK private car and fleet markets. In addition, it writes specialist classes including commercial vehicle, taxi, motorcycle, motor trade and classic/specialist vehicles, as well as other UK small commercial products.
A38: Casualty and Other Lines includes coverages that insure financial institutions crime and professional indemnity, medical malpractice, workers' compensation and professional, managerial and general liability, as well as syndicate participations.
A40: OTHER
A42: Included in Other are Opus, which provides investment advisory services to affiliates and also manages assets for unaffiliated institutions such as insurance companies, retirement plans and foundations; earnings on holding company assets; and voluntary pools business which is in run-off.

Sheet 2
A1: THE HANOVER INSURANCE GROUP
A2: FINANCIAL HIGHLIGHTS
C5: Q1 | E5: Q2 | G5: Q3 | I5: Q4 | K5: Q1
A6: (In millions, except earnings per share) | C6: 2013 | E6: 2013 | G6: 2013 | I6: 2013 | K6: 2014
A7: PREMIUMS
A8: Gross premiums written | C8: 1318100000 | E8: 1394400000 | G8: 1313800000 | I8: 1175400000 | K8: 1408100000
A10: Net premiums written | C10: 1076700000 | E10: 1242600000 | G10: 1181900000 | I10: 1051500000 | K10: 1172300000
A12: Net premiums earned | C12: 1094300000 | E12: 1090800000 | G12: 1124700000 | I12: 1140700000 | K12: 1163000000
A14: EARNINGS
A15: Operating income before interest and taxes | C15: 102200000 | E15: 81100000 | G15: 107200000 | I15: 102900000 | K15: 85000000
A17: Operating income after taxes | C17: 59900000 | E17: 46800000 | G17: 60900000 | I17: 59600000 | K17: 47000000
A19: Income from continuing operations | C19: 66400000 | E19: 53100000 | G19: 61300000 | I19: 64900000 | K19: 54700000
A21: Net income | C21: 66200000 | E21: 53400000 | G21: 61300000 | I21: 70100000 | K21: 54600000
A23: PER SHARE DATA (DILUTED)
A25: Operating income after taxes | C25: 1320000 | E25: 1050000 | G25: 1360000 | I25: 1330000 | K25: 1050000
A27: Income from continuing operations | C27: 1.47 | E27: 1.19 | G27: 1.37 | I27: 1.45 | K27: 1.22
A29: Net income | C29: 1.46 | E29: 1.19 | G29: 1.37 | I29: 1.57 | K29: 1.22
A31: Weighted average shares outstanding | C31: 45300000 | E31: 44800000 | G31: 44600000 | I31: 44800000 | K31: 44800000
A35: BALANCE SHEET
C36: March 31 | E36: June 30 | G36: September 30 | I36: December 31 | K36: March 31
A37: (In millions, except per share data) | C37: 2013 | E37: 2013 | G37: 2013 | I37: 2013 | K37: 2014
A39: Total assets | C39: 13442100000 | E39: 13306400000 | G39: 13463300000 | I39: 13378700000 | K39: 13643000000
A40: Total loss and loss adjustment expense reserves | C40: 6092500000 | E40: 6063600000 | G40: 6162800000 | I40: 6231500000 | K40: 6323400000
A41: Total shareholders' equity | C41: 2624000000 | E41: 2495700000 | G41: 2544200000 | I41: 2594500000 | K41: 2681100000
A43: U.S. Property and Casualty Companies
A44: Statutory surplus | C44: 1623.3 | E44: 1639.5 | G44: 1751.3 | I44: 1834.3 | K44: 1900.4
A45: Premium to surplus ratio | C45: 2.09:1 | E45: 2.08:1 | G45: 1.95:1 | I45: 1.87:1 | K45: 1.83:1
A47: Book value per share | C47: 59580000 | E47: 57410000 | G47: 58430000 | I47: 59430000 | K47: 61240000
A48: Book value per share, excluding net unrealized
A49: investment gains and losses, net of tax | C49: 52810000 | E49: 53620000 | G49: 54640000 | I49: 56070000 | K49: 56700000
A50: Tangible book value per share (total book value
A51: excluding goodwill and intangibles) | C51: 52460000 | E51: 50250000 | G51: 51200000 | I51: 52220000 | K51: 54060000
A53: Shares outstanding | C53: 44000000 | E53: 43500000 | G53: 43600000 | I53: 43700000 | K53: 43800000
A55: Total debt/equity | C55: 0.373 | E55: 0.376 | G55: 0.369 | I55: 0.348 | K55: 0.337
A56: Total debt/total capital | C56: 0.272 | E56: 0.273 | G56: 0.27 | I56: 0.258 | K56: 0.252

Sheet 3
A1: THE HANOVER INSURANCE GROUP
A2: CONSOLIDATED INCOME STATEMENTS
C6: Three Months ended March 31
A7: (In millions) | C7: 2014 | E7: 2013 | G7: % Change
A9: REVENUES
A10: Premiums earned | C10: 1163000000 | E10: 1094300000 | G10: 6.3
A11: Net investment income | C11: 67000000 | E11: 67300000 | G11: -0.4
A12: Net realized investment gains | C12: 4400000 | E12: 8100000 | G12: -45.7
A13: Fees and other income | C13: 9500000 | E13: 10600000 | G13: -10.4
A14: Total revenues | C14: 1243900000 | E14: 1180300000 | G14: 5.4
A16: LOSSES AND EXPENSES
A17: Losses and loss adjustment expenses | C17: 750500000 | E17: 683400000 | G17: 9.8
A18: Amortization of deferred acquisition costs | C18: 253700000 | E18: 242500000 | G18: 4.6
A19: Interest expense | C19: 16300000 | E19: 14700000 | G19: 10.9
A20: Other operating expenses | C20: 151300000 | E20: 150800000 | G20: 0.3
A21: Total losses and expenses | C21: 1171800000 | E21: 1091400000 | G21: 7.4
A24: Income from continuing operations before income taxes | C24: 72100000 | E24: 88900000 | G24: -18.9
A25: Income tax expense | C25: 17400000 | E25: 22500000 | G25: -22.7
A27: Income from continuing operations | C27: 54700000 | E27: 66400000 | G27: -17.6
G28: -
A29: Discontinued operations | C29: -100000 | E29: -200000 | G29: N/M
A31: Net income | C31: 54600000 | E31: 66200000 | G31: -17.5

Sheet 4
A1: THE HANOVER INSURANCE GROUP
A2: CONSOLIDATED BALANCE SHEETS
C6: March 31 | E6: December 31
A7: (In millions, except per share data) | C7: 2014 | E7: 2013 | G7: % Change
A8: ASSETS
A9: Investments:
A10: Fixed maturities, at fair value (amortized cost of $6,789.8 and $6,815.2) | C10: 7007500000 | E10: 6970600000 | G10: 0.5
A11: Equity securities, at fair value (cost of $421.7 and $366.5) | C11: 501000000 | E11: 430200000 | G11: 16.5
A12: Other investments | C12: 235800000 | E12: 192500000 | G12: 22.5
A13: Total investments | C13: 7744300000 | E13: 7593300000 | G13: 2
A14: Cash and cash equivalents | C14: 476300000 | E14: 486200000 | G14: -2
A15: Accrued investment income | C15: 70700000 | E15: 68000000 | G15: 4
A16: Premiums and accounts receivable, net | C16: 1415800000 | E16: 1324600000 | G16: 6.9
A17: Reinsurance recoverable on paid and unpaid losses and unearned premiums | C17: 2379300000 | E17: 2335000000 | G17: 1.9
A18: Deferred acquistion costs | C18: 520100000 | E18: 506000000 | G18: 2.8
A19: Deferred income taxes | C19: 200900000 | E19: 239700000 | G19: -16.2
A20: Goodwill | C20: 185000000 | E20: 184900000 | G20: 0.1
A21: Other assets | C21: 534300000 | E21: 526100000 | G21: 1.6
A22: Assets of discontinued operations | C22: 116300000 | E22: 114900000 | G22: 1.2
A23: Total assets | C23: 13643000000 | E23: 13378700000 | G23: 2
A25: LIABILITIES AND SHAREHOLDERS' EQUITY
A27: LIABILITIES
A28: Loss and loss adjustment expense reserves | C28: 6323400000 | E28: 6231500000 | G28: 1.5
A29: Unearned premiums | C29: 2593700000 | E29: 2515800000 | G29: 3.1
A30: Expenses and taxes payable | C30: 576100000 | E30: 637200000 | G30: -9.6
A31: Reinsurance premiums payable | C31: 448100000 | E31: 374700000 | G31: 19.6
A32: Debt | C32: 903900000 | E32: 903900000 | G32: -
A33: Liabilities of discontinued operations | C33: 116700000 | E33: 121100000 | G33: -3.6
A34: Total liabilities | C34: 10961900000 | E34: 10784200000 | G34: 1.6
A36: SHAREHOLDERS' EQUITY
A37: Preferred stock, par value $0.01 per share;
A38: 20.0 million shares authorized; none issued | C38: 0 | E38: 0 | G38: -
A39: Common stock, par value $0.01 per share; 300.0 million shares
A40: authorized; 60.5 million shares issued | C40: 600000 | E40: 600000 | G40: -
A41: Additional paid-in capital | C41: 1821400000 | E41: 1830100000 | G41: -0.5
A42: Accumulated other comprehensive income | C42: 228100000 | E42: 177600000 | G42: 28.4
A43: Retained earnings | C43: 1387400000 | E43: 1349100000 | G43: 2.8
A44: Treasury stock at cost (16.7 and 16.8 million shares) | C44: -756400000 | E44: -762900000 | G44: -0.9
A45: Total shareholders' equity | C45: 2681100000 | E45: 2594500000 | G45: 3.3
A46: Total liabilities and shareholders' equity | C46: 13643000000 | E46: 13378700000 | G46: 2

Sheet 5
A1: THE HANOVER INSURANCE GROUP
A2: GAAP UNDERWRITING AND OPERATING INCOME INFORMATION AND RATIOS
A4: CONSOLIDATED
A6: Three Months ended March 31
D10: 2014 | N10: 2013
D13: Commercial | F13: Personal | N13: Commercial | P13: Personal
A14: (In millions, except percentage data) | D14: Lines | F14: Lines | H14: Chaucer | J14: Other | L14: Total | N14: Lines | P14: Lines | R14: Chaucer | T14: Other | V14: Total
B17: Gross premiums written | D17: 597800000 | F17: 343300000 | H17: 467000000 | J17: 0 | L17: 1408100000 | N17: 561400000 | P17: 367200000 | R17: 389500000 | T17: 0 | V17: 1318100000
B19: Net premiums written | D19: 539300000 | F19: 319200000 | H19: 313800000 | J19: 0 | L19: 1172300000 | N19: 483600000 | P19: 341600000 | R19: 251500000 | T19: 0 | V19: 1076700000
B21: Net premiums earned | D21: 512700000 | F21: 350200000 | H21: 300100000 | J21: 0 | L21: 1163000000 | N21: 476600000 | P21: 368800000 | R21: 248900000 | T21: 0 | V21: 1094300000
B23: Losses and LAE:
B25: Current accident year, excluding catastrophe losses | D25: 303600000 | F25: 230600000 | H25: 178100000 | J25: 0 | L25: 712300000 | N25: 290000000 | P25: 238300000 | R25: 140300000 | T25: 0 | V25: 668600000
B27: Prior year unfavorable (favorable) reserve development | D27: 600000 | F27: -1000000 | H27: -19600000 | J27: 300000 | L27: -19700000 | N27: 200000 | P27: 5600000 | R27: -13300000 | T27: 600000 | V27: -6900000
B29: Catastrophe losses | D29: 40200000 | F29: 18400000 | H29: -700000 | J29: 0 | L29: 57900000 | N29: 7400000 | P29: 11700000 | R29: 2600000 | T29: 0 | V29: 21700000
B31: Total losses and LAE | D31: 344400000 | F31: 248000000 | H31: 157800000 | J31: 300000 | L31: 750500000 | N31: 297600000 | P31: 255600000 | R31: 129600000 | T31: 600000 | V31: 683400000
B33: Amortization of deferred acquisition costs and other underwriting expenses | D33: 189600000 | F33: 100100000 | H33: 105800000 | J33: 200000 | L33: 395700000 | N33: 182100000 | P33: 103100000 | R33: 86300000 | T33: 500000 | V33: 372000000
J34: 0
B35: GAAP underwriting profit (loss) | D35: -21300000 | F35: 2100000 | H35: 36500000 | J35: -500000 | L35: 16800000 | N35: -3100000 | P35: 10100000 | R35: 33000000 | T35: -1100000 | V35: 38900000
B37: Net investment income | D37: 37300000 | F37: 17900000 | H37: 10500000 | J37: 1300000 | L37: 67000000 | N37: 36100000 | P37: 19000000 | R37: 10500000 | T37: 1700000 | V37: 67300000
X38: q
B39: Other income | D39: 2000000 | F39: 2900000 | H39: 3900000 | J39: 700000 | L39: 9500000 | N39: 2000000 | P39: 3300000 | R39: 4500000 | T39: 800000 | V39: 10600000
B41: Other operating expenses | D41: -1900000 | F41: -1300000 | H41: -1700000 | J41: -3400000 | L41: -8300000 | N41: -2000000 | P41: -1900000 | R41: -7100000 | T41: -3600000 | V41: -14600000
B43: Operating income (loss) before income taxes | D43: 16100000 | F43: 21600000 | H43: 49200000 | J43: -1900000 | L43: 85000000 | N43: 33000000 | P43: 30500000 | R43: 40900000 | T43: -2200000 | V43: 102200000
B48: Loss and LAE ratio:
B50: Current accident year, excluding catastrophe losses | D50: 0.593 | F50: 0.658 | H50: 0.592 | J50: N/M | L50: 0.613 | N50: 0.609 | P50: 0.646 | R50: 0.563 | T50: N/M | V50: 0.61
B52: Prior year unfavorable (favorable) reserve development | D52: 0.001 | F52: -0.003 | H52: -0.065 | J52: N/M | L52: -0.017 | N52: 0 | P52: 0.015 | R52: -0.053 | T52: N/M | V52: -0.006
B54: Catastrophe losses | D54: 0.078 | F54: 0.053 | H54: -0.002 | J54: N/M | L54: 0.05 | N54: 0.016 | P54: 0.032 | R54: 0.01 | T54: N/M | V54: 0.02
B55: Total loss and LAE ratio | D55: 0.672 | F55: 0.708 | H55: 0.525 | J55: N/M | L55: 0.646 | N55: 0.625 | P55: 0.693 | R55: 0.52 | T55: N/M | V55: 0.624
B57: Expense ratio | D57: 0.368 | F57: 0.279 | H57: 0.353 | J57: N/M | L57: 0.337 | N57: 0.38 | P57: 0.272 | R57: 0.347 | T57: N/M | V57: 0.337
B59: Combined ratio | D59: 1.04 | F59: 0.987 | H59: 0.878 | J59: N/M | L59: 0.983 | N59: 1.005 | P59: 0.965 | R59: 0.867 | T59: N/M | V59: 0.961

Sheet 6
A1: THE HANOVER INSURANCE GROUP
A2: GAAP UNDERWRITING INFORMATION AND RELATED RATIOS
A5: CONSOLIDATED
E10: Q1 | G10: Q2 | I10: Q3 | K10: Q4 | M10: Q1
A11: (In millions, except percentage data) | E11: 2013 | G11: 2013 | I11: 2013 | K11: 2013 | M11: 2014
B15: Gross premiums written | D15: $ | E15: 1318100000 | F15: $ | G15: 1394400000 | H15: $ | I15: 1313800000 | J15: $ | K15: 1175400000 | L15: $ | M15: 1408100000
B17: Net premiums written | D17: $ | E17: 1076700000 | F17: $ | G17: 1242600000 | H17: $ | I17: 1181900000 | J17: $ | K17: 1051500000 | L17: $ | M17: 1172300000
B19: Net premiums earned | D19: $ | E19: 1094300000 | F19: $ | G19: 1090800000 | H19: $ | I19: 1124700000 | J19: $ | K19: 1140700000 | L19: $ | M19: 1163000000
B21: Losses and LAE:
B23: Current accident year, excluding catastrophe losses | E23: 668600000 | G23: 659200000 | I23: 688900000 | K23: 680700000 | M23: 712300000
B25: Prior year favorable reserve development | E25: -6900000 | G25: -26900000 | I25: -23600000 | K25: -18900000 | M25: -19700000
B27: Catastrophe losses | E27: 21700000 | G27: 59800000 | I27: 30600000 | K27: 27900000 | M27: 57900000
B29: Total losses and LAE | E29: 683400000 | G29: 692100000 | I29: 695900000 | K29: 689700000 | M29: 750500000
B31: Amortization of deferred acquisition costs and other underwriting expenses | E31: 372000000 | G31: 384800000 | I31: 387400000 | K31: 414300000 | M31: 395700000
B33: GAAP underwriting profit | D33: $ | E33: 38900000 | F33: $ | G33: 13900000 | H33: $ | I33: 41400000 | J33: $ | K33: 36700000 | L33: $ | M33: 16800000
B37: Loss and LAE ratio:
B39: Current accident year, excluding catastrophe losses | E39: 0.61 | G39: 0.604 | I39: 0.613 | K39: 0.598 | M39: 0.613
B41: Prior year favorable reserve development | E41: -0.006 | G41: -0.025 | I41: -0.021 | K41: -0.017 | M41: -0.017
B43: Catastrophe losses | E43: 0.02 | G43: 0.055 | I43: 0.027 | K43: 0.024 | M43: 0.05
B45: Total loss and LAE ratio | E45: 0.624 | G45: 0.634 | I45: 0.619 | K45: 0.605 | M45: 0.646
B47: Expense ratio | E47: 0.337 | G47: 0.35 | I47: 0.341 | K47: 0.36 | M47: 0.337
B49: Combined ratio | E49: 0.961 | G49: 0.984 | I49: 0.96 | K49: 0.965 | M49: 0.983
B53: Combined ratio, excluding catastrophe losses | E53: 0.941 | G53: 0.929 | I53: 0.933 | K53: 0.941 | M53: 0.933
B55: Current accident year combined ratio, excluding
B56: catastrophe losses | E56: 0.947 | G56: 0.954 | I56: 0.954 | K56: 0.958 | M56: 0.95

Sheet 7
A1: THE HANOVER INSURANCE GROUP
A2: GAAP UNDERWRITING AND OPERATING INCOME INFORMATION AND RATIOS
A4: COMMERCIAL LINES
A6: Three Months ended March 31
C10: 2014 | N10: 2013
D13: Multiple | H13: Workers' | O13: Multiple | S13: Workers'
A14: (In millions, except percentage data) | D14: Peril | F14: Auto | H14: Comp | J14: Other | L14: Total | O14: Peril | Q14: Auto | S14: Comp | U14: Other | W14: Total
B17: Net premiums written | C17: $ | D17: 172900000 | E17: $ | F17: 76200000 | G17: $ | H17: 71300000 | I17: $ | J17: 218900000 | K17: $ | L17: 539300000 | N17: $ | O17: 154000000 | P17: $ | Q17: 72800000 | R17: $ | S17: 62200000 | T17: $ | U17: 194600000 | V17: $ | W17: 483600000
B19: Net premiums earned | C19: $ | D19: 167500000 | E19: $ | F19: 75500000 | G19: $ | H19: 58800000 | I19: $ | J19: 210900000 | K19: $ | L19: 512700000 | N19: $ | O19: 152600000 | P19: $ | Q19: 69500000 | R19: $ | S19: 53000000 | T19: $ | U19: 201500000 | V19: $ | W19: 476600000
B21: Losses and LAE:
B23: Current accident year, excluding catastrophe losses | D23: 92300000 | F23: 54400000 | H23: 41500000 | J23: 115400000 | L23: 303600000 | O23: 86900000 | Q23: 48900000 | S23: 37100000 | U23: 117100000 | W23: 290000000
B25: Prior year unfavorable (favorable) reserve development | D25: -700000 | F25: 3400000 | H25: -1600000 | J25: -500000 | L25: 600000 | O25: -100000 | Q25: 1800000 | S25: -3500000 | U25: 2000000 | W25: 200000
B27: Catastrophe losses | D27: 32100000 | F27: 0 | H27: 0 | J27: 8100000 | L27: 40200000 | O27: 5200000 | Q27: 100000 | S27: 0 | U27: 2100000 | W27: 7400000
B29: Total losses and LAE | D29: 123700000 | F29: 57800000 | H29: 39900000 | J29: 123000000 | L29: 344400000 | O29: 92000000 | Q29: 50800000 | S29: 33600000 | U29: 121200000 | W29: 297600000
B31: Amortization of deferred acquisition costs and other underwriting expenses | L31: 189600000 | W31: 182100000
B33: GAAP underwriting loss | L33: -21300000 | W33: -3100000
B35: Net investment income | L35: 37300000 | W35: 36100000
B37: Other income | L37: 2000000 | W37: 2000000
B39: Other operating expenses | L39: -1900000 | W39: -2000000
B41: Operating income before income taxes | K41: $ | L41: 16100000 | V41: $ | W41: 33000000
S42: .
B46: Loss and LAE ratio:
B48: Current accident year, excluding catastrophe losses | D48: 0.55 | F48: 0.721 | H48: 0.705 | J48: 0.547 | L48: 0.593 | O48: 0.569 | Q48: 0.704 | S48: 0.7 | U48: 0.581 | W48: 0.609
B50: Prior year unfavorable (favorable) reserve development | D50: -0.004 | F50: 0.045 | H50: -0.027 | J50: -0.002 | L50: 0.001 | O50: -0.001 | Q50: 0.026 | S50: -0.066 | U50: 0.01 | W50: 0
B52: Catastrophe losses | D52: 0.192 | F52: - | H52: - | J52: 0.038 | L52: 0.078 | O52: 0.034 | Q52: 0.001 | S52: - | U52: 0.01 | W52: 0.016
B53: Total loss and LAE ratio | D53: 0.738 | F53: 0.766 | H53: 0.678 | J53: 0.583 | L53: 0.672 | O53: 0.602 | Q53: 0.731 | S53: 0.634 | U53: 0.601 | W53: 0.625
B55: Expense ratio | L55: 0.368 | W55: 0.38
B57: Combined ratio | L57: 1.04 | W57: 1.005
B61: Change in policies in force | D61: 0.021 | F61: 0.056 | H61: 0.104 | J61: 0.007 | L61: 0.03 | O61: 0.026 | Q61: 0.071 | S61: 0.131 | U61: 0.109 | W61: 0.078
B63: Retention | D63: 0.846 | F63: 0.806 | H63: 0.794 | J63: N/M | L63: 0.829 | O63: 0.83 | Q63: 0.814 | S63: 0.782 | U63: N/M | W63: 0.813

Sheet 8
A1: THE HANOVER INSURANCE GROUP
A2: GAAP UNDERWRITING INFORMATION AND RELATED RATIOS
A5: COMMERCIAL LINES
E10: Q1 | G10: Q2 | I10: Q3 | K10: Q4 | M10: Q1
A11: (In millions, except percentage data) | E11: 2013 | G11: 2013 | I11: 2013 | K11: 2013 | M11: 2014
B14: Gross premiums written | D14: $ | E14: 561400000 | F14: $ | G14: 591000000 | H14: $ | I14: 601700000 | J14: $ | K14: 541800000 | L14: $ | M14: 597800000
B16: Net premiums written | D16: $ | E16: 483600000 | F16: $ | G16: 521500000 | H16: $ | I16: 530500000 | J16: $ | K16: 471600000 | L16: $ | M16: 539300000
B18: Net premiums earned | D18: $ | E18: 476600000 | F18: $ | G18: 485800000 | H18: $ | I18: 492700000 | J18: $ | K18: 503300000 | L18: $ | M18: 512700000
B20: Losses and LAE:
B22: Current accident year, excluding catastrophe losses | E22: 290000000 | G22: 296000000 | I22: 293700000 | K22: 300200000 | M22: 303600000
B24: Prior year unfavorable reserve development | E24: 200000 | G24: 500000 | I24: 2300000 | K24: 300000 | M24: 600000
B26: Catastrophe losses | E26: 7400000 | G26: 15100000 | I26: 8500000 | K26: 7700000 | M26: 40200000
B28: Total losses and LAE | E28: 297600000 | G28: 311600000 | I28: 304500000 | K28: 308200000 | M28: 344400000
B30: Amortization of deferred acquisition costs and other underwriting expenses | E30: 182100000 | G30: 183700000 | I30: 185400000 | K30: 196300000 | M30: 189600000
E31: 0
B32: GAAP underwriting profit (loss) | D32: $ | E32: -3100000 | F32: $ | G32: -9500000 | H32: $ | I32: 2800000 | J32: $ | K32: -1200000 | L32: $ | M32: -21300000
B36: Loss and LAE ratio:
B38: Current accident year, excluding catastrophe losses | E38: 0.609 | G38: 0.61 | I38: 0.596 | K38: 0.597 | M38: 0.593
B40: Prior year unfavorable reserve development | E40: 0 | G40: 0.001 | I40: 0.005 | K40: 0.001 | M40: 0.001
B42: Catastrophe losses | E42: 0.016 | G42: 0.031 | I42: 0.017 | K42: 0.015 | M42: 0.078
B44: Total loss and LAE ratio | E44: 0.625 | G44: 0.642 | I44: 0.618 | K44: 0.613 | M44: 0.672
B46: Expense ratio | E46: 0.38 | G46: 0.376 | I46: 0.374 | K46: 0.388 | M46: 0.368
B48: Combined ratio | E48: 1.005 | G48: 1.018 | I48: 0.992 | K48: 1.001 | M48: 1.04
B52: Combined ratio, excluding catastrophe losses | E52: 0.989 | G52: 0.987 | I52: 0.975 | K52: 0.986 | M52: 0.962
B54: Current accident year combined ratio, excluding
B55: catastrophe losses | E55: 0.989 | G55: 0.986 | I55: 0.97 | K55: 0.985 | M55: 0.961

Sheet 9
A1: THE HANOVER INSURANCE GROUP
A2: GAAP UNDERWRITING AND OPERATING INCOME INFORMATION AND RATIOS
A4: PERSONAL LINES
A6: Three Months ended March 31
D10: 2014 | M10: 2013
A14: (In millions, except percentage data) | E14: Auto | G14: Home | I14: Other | K14: Total | N14: Auto | P14: Home | R14: Other | T14: Total
B17: Net premiums written | D17: $ | E17: 211800000 | F17: $ | G17: 99000000 | H17: $ | I17: 8400000 | J17: $ | K17: 319200000 | M17: $ | N17: 227100000 | O17: $ | P17: 105400000 | Q17: $ | R17: 9100000 | S17: $ | T17: 341600000
B19: Net premiums earned | D19: $ | E19: 214900000 | F19: $ | G19: 125100000 | H19: $ | I19: 10200000 | J19: $ | K19: 350200000 | M19: $ | N19: 228500000 | O19: $ | P19: 129700000 | Q19: $ | R19: 10600000 | S19: $ | T19: 368800000
B21: Losses and LAE:
B23: Current accident year, excluding catastrophe losses | E23: 160500000 | G23: 66100000 | I23: 4000000 | K23: 230600000 | N23: 170500000 | P23: 63500000 | R23: 4300000 | T23: 238300000
B25: Prior year unfavorable (favorable) reserve development | E25: -1000000 | G25: 0 | I25: 0 | K25: -1000000 | N25: 4500000 | P25: 1000000 | R25: 100000 | T25: 5600000
B27: Catastrophe losses | E27: 100000 | G27: 17900000 | I27: 400000 | K27: 18400000 | N27: -300000 | P27: 11400000 | R27: 600000 | T27: 11700000
B29: Total losses and LAE | E29: 159600000 | G29: 84000000 | I29: 4400000 | K29: 248000000 | N29: 174700000 | P29: 75900000 | R29: 5000000 | T29: 255600000
B31: Amortization of deferred acquisition costs and other underwriting expenses | K31: 100100000 | T31: 103100000
B33: GAAP underwriting profit | K33: 2100000 | T33: 10100000
B35: Net investment income | K35: 17900000 | T35: 19000000
B37: Other income | K37: 2900000 | T37: 3300000
B39: Other operating expenses | K39: -1300000 | T39: -1900000
B41: Operating income before income taxes | J41: $ | K41: 21600000 | S41: $ | T41: 30500000
B46: Loss and LAE ratio:
B48: Current accident year, excluding catastrophe losses | E48: 0.748 | G48: 0.529 | I48: 0.392 | K48: 0.658 | N48: 0.745 | P48: 0.489 | R48: 0.406 | T48: 0.646
B50: Prior year unfavorable (favorable) reserve development | E50: -0.005 | G50: - | I50: - | K50: -0.003 | N50: 0.02 | P50: 0.008 | R50: 0.009 | T50: 0.015
B52: Catastrophe losses | E52: 0 | G52: 0.143 | I52: 0.039 | K52: 0.053 | N52: 0 | P52: 0.088 | R52: 0.057 | T52: 0.032
B53: Total loss and LAE ratio | E53: 0.743 | G53: 0.672 | I53: 0.431 | K53: 0.708 | N53: 0.765 | P53: 0.585 | R53: 0.472 | T53: 0.693
B55: Expense ratio | K55: 0.279 | T55: 0.272
B57: Combined ratio | K57: 0.987 | T57: 0.965
B61: Change in policies in force | E61: -0.12 | G61: -0.135 | I61: -0.152 | K61: -0.129 | N61: -0.034 | P61: -0.044 | R61: -0.093 | T61: -0.042
B63: Retention | E63: 0.736 | G63: 0.74 | I63: N/M | K63: 0.74 | N63: 0.782 | P63: 0.805 | R63: N/M | T63: 0.796

Sheet 10
A1: THE HANOVER INSURANCE GROUP
A2: GAAP UNDERWRITING INFORMATION AND RELATED RATIOS
A5: PERSONAL LINES
E10: Q1 | G10: Q2 | I10: Q3 | K10: Q4 | M10: Q1
A11: (In millions, except percentage data) | E11: 2013 | G11: 2013 | I11: 2013 | K11: 2013 | M11: 2014
B15: Gross premiums written | D15: $ | E15: 367200000 | F15: $ | G15: 397800000 | H15: $ | I15: 398400000 | J15: $ | K15: 368200000 | L15: $ | M15: 343300000
B17: Net premiums written | D17: $ | E17: 341600000 | F17: $ | G17: 370600000 | H17: $ | I17: 372900000 | J17: $ | K17: 342900000 | L17: $ | M17: 319200000
B19: Net premiums earned | D19: $ | E19: 368800000 | F19: $ | G19: 366700000 | H19: $ | I19: 363400000 | J19: $ | K19: 355300000 | L19: $ | M19: 350200000
B21: Losses and LAE:
B23: Current accident year, excluding catastrophe losses | E23: 238300000 | G23: 229100000 | I23: 230500000 | K23: 221200000 | M23: 230600000
B25: Prior year unfavorable (favorable) reserve development | E25: 5600000 | G25: 2800000 | I25: 2100000 | K25: 3200000 | M25: -1000000
B27: Catastrophe losses | E27: 11700000 | G27: 32200000 | I27: 10300000 | K27: 12700000 | M27: 18400000
B29: Total losses and LAE | E29: 255600000 | G29: 264100000 | I29: 242900000 | K29: 237100000 | M29: 248000000
B31: Amortization of deferred acquisition costs and other underwriting expenses | E31: 103100000 | G31: 102900000 | I31: 102500000 | K31: 108400000 | M31: 100100000
B33: GAAP underwriting profit (loss) | D33: $ | E33: 10100000 | F33: $ | G33: -300000 | H33: $ | I33: 18000000 | J33: $ | K33: 9800000 | L33: $ | M33: 2100000
B37: Loss and LAE ratio:
B39: Current accident year, excluding catastrophe losses | E39: 0.646 | G39: 0.624 | I39: 0.634 | K39: 0.622 | M39: 0.658
B41: Prior year unfavorable (favorable) reserve development | E41: 0.015 | G41: 0.008 | I41: 0.006 | K41: 0.009 | M41: -0.003
B43: Catastrophe losses | E43: 0.032 | G43: 0.088 | I43: 0.028 | K43: 0.036 | M43: 0.053
B45: Total loss and LAE ratio | E45: 0.693 | G45: 0.72 | I45: 0.668 | K45: 0.667 | M45: 0.708
B47: Expense ratio | E47: 0.272 | G47: 0.273 | I47: 0.275 | K47: 0.298 | M47: 0.279
B49: Combined ratio | E49: 0.965 | G49: 0.993 | I49: 0.943 | K49: 0.965 | M49: 0.987
B53: Combined ratio, excluding catastrophe losses | E53: 0.933 | G53: 0.905 | I53: 0.915 | K53: 0.929 | M53: 0.934
B55: Current accident year combined ratio, excluding
B56: catastrophe losses | E56: 0.918 | G56: 0.897 | I56: 0.909 | K56: 0.92 | M56: 0.937

Sheet 11
A1: THE HANOVER INSURANCE GROUP
A2: GAAP UNDERWRITING AND OPERATING INCOME INFORMATION AND RATIOS
A4: CHAUCER
A6: Three Months ended March 31
D10: 2014 | Q10: 2013
G12: Marine & | K12: UK | M12: Casualty | T12: Marine & | X12: UK | Z12: Casualty
A13: (In millions, except percentage data) | E13: Property | G13: Aviation | I13: Energy | K13: Motor | M13: & Other | O13: Total | R13: Property | T13: Aviation | V13: Energy | X13: Motor | Z13: & Other | AB13: Total
B16: Gross premiums written | D16: $ | E16: 106800000 | F16: $ | G16: 128300000 | H16: $ | I16: 59500000 | J16: $ | K16: 77800000 | L16: $ | M16: 94600000 | N16: $ | O16: 467000000 | Q16: $ | R16: 92200000 | S16: $ | T16: 108300000 | U16: $ | V16: 51800000 | W16: $ | X16: 79700000 | Y16: $ | Z16: 57500000 | AA16: $ | AB16: 389500000
B18: Net premiums written | D18: $ | E18: 59200000 | F18: $ | G18: 91000000 | H18: $ | I18: 24400000 | J18: $ | K18: 56100000 | L18: $ | M18: 83100000 | N18: $ | O18: 313800000 | Q18: $ | R18: 47800000 | S18: $ | T18: 81300000 | U18: $ | V18: 17700000 | W18: $ | X18: 60100000 | Y18: $ | Z18: 44600000 | AA18: $ | AB18: 251500000
B20: Net premiums earned | D20: $ | E20: 46600000 | F20: $ | G20: 66800000 | H20: $ | I20: 53200000 | J20: $ | K20: 77300000 | L20: $ | M20: 56200000 | N20: $ | O20: 300100000 | Q20: $ | R20: 44500000 | S20: $ | T20: 58800000 | U20: $ | V20: 44800000 | W20: $ | X20: 66500000 | Y20: $ | Z20: 34300000 | AA20: $ | AB20: 248900000
B22: Losses and LAE:
B24: Current accident year, excluding catastrophe losses | O24: 178100000 | AB24: 140300000
B26: Prior year favorable reserve development | O26: -19600000 | AB26: -13300000
B28: Catastrophe losses | O28: -700000 | AB28: 2600000
B30: Total losses and LAE | O30: 157800000 | AB30: 129600000
B32: Amortization of deferred acquisition costs and other underwriting expenses | O32: 105800000 | AB32: 86300000
B34: GAAP underwriting profit | O34: 36500000 | AB34: 33000000
B36: Net investment income | O36: 10500000 | AB36: 10500000
B38: Other income | O38: 3900000 | AB38: 4500000
B40: Other operating expenses | O40: -1700000 | AB40: -7100000
B42: Operating income before income taxes | N42: $ | O42: 49200000 | AA42: $ | AB42: 40900000
B47: Loss and LAE ratio:
B49: Current accident year, excluding catastrophe losses | O49: 0.592 | AB49: 0.563
B51: Prior year favorable reserve development | O51: -0.065 | AB51: -0.053
B53: Catastrophe losses | O53: -0.002 | AB53: 0.01
B54: Total loss and LAE ratio | O54: 0.525 | AB54: 0.52
B56: Expense ratio | O56: 0.353 | AB56: 0.347
B58: Combined ratio | O58: 0.878 | AB58: 0.867

Sheet 12
A1: THE HANOVER INSURANCE GROUP
A2: GAAP UNDERWRITING INFORMATION AND RELATED RATIOS
A5: CHAUCER
D10: Q1 | F10: Q2 | H10: Q3 | J10: Q4 | L10: Q1
A11: (In millions, except percentage data) | D11: 2013 | F11: 2013 | H11: 2013 | J11: 2013 | L11: 2014
B15: Gross premiums written | C15: $ | D15: 389500000 | E15: $ | F15: 405600000 | G15: $ | H15: 313700000 | I15: $ | J15: 265400000 | K15: $ | L15: 467000000
B17: Net premiums written | C17: $ | D17: 251500000 | E17: $ | F17: 350500000 | G17: $ | H17: 278500000 | I17: $ | J17: 237000000 | K17: $ | L17: 313800000
B19: Net premiums earned | C19: $ | D19: 248900000 | E19: $ | F19: 238300000 | G19: $ | H19: 268600000 | I19: $ | J19: 282100000 | K19: $ | L19: 300100000
B21: Losses and LAE:
B23: Current accident year, excluding catastrophe losses | D23: 140300000 | F23: 134100000 | H23: 164800000 | J23: 159200000 | L23: 178100000
B25: Prior year favorable reserve development | D25: -13300000 | F25: -30700000 | H25: -27800000 | J25: -22800000 | L25: -19600000
B27: Catastrophe losses | D27: 2600000 | F27: 12500000 | H27: 11800000 | J27: 7500000 | L27: -700000
B29: Total losses and LAE | D29: 129600000 | F29: 115900000 | H29: 148800000 | J29: 143900000 | L29: 157800000
B31: Amortization of deferred acquisition costs and other underwriting expenses | D31: 86300000 | F31: 97700000 | H31: 99000000 | J31: 109000000 | L31: 105800000
B33: GAAP underwriting profit | C33: $ | D33: 33000000 | E33: $ | F33: 24700000 | G33: $ | H33: 20800000 | I33: $ | J33: 29200000 | K33: $ | L33: 36500000
B37: Loss and LAE ratio:
B39: Current accident year, excluding catastrophe losses | D39: 0.563 | F39: 0.563 | H39: 0.613 | J39: 0.564 | L39: 0.592
B41: Prior year favorable reserve development | D41: -0.053 | F41: -0.129 | H41: -0.103 | J41: -0.081 | L41: -0.065
B43: Catastrophe losses | D43: 0.01 | F43: 0.052 | H43: 0.044 | J43: 0.027 | L43: -0.002
B45: Total loss and LAE ratio | D45: 0.52 | F45: 0.486 | H45: 0.554 | J45: 0.51 | L45: 0.525
B47: Expense ratio | D47: 0.347 | F47: 0.41 | H47: 0.369 | J47: 0.386 | L47: 0.353
B49: Combined ratio | D49: 0.867 | F49: 0.896 | H49: 0.923 | J49: 0.896 | L49: 0.878
B53: Combined ratio, excluding catastrophe losses | D53: 0.857 | F53: 0.844 | H53: 0.879 | J53: 0.869 | L53: 0.88
B55: Current accident year combined ratio, excluding
B56: catastrophe losses | D56: 0.91 | F56: 0.973 | H56: 0.982 | J56: 0.95 | L56: 0.945

Sheet 13
A1: THE HANOVER INSURANCE GROUP
A2: NET INVESTMENT INCOME AND YIELDS
D6: Q1 | F6: Q2 | H6: Q3 | J6: Q4 | L6: Q1
A7: (In millions, except yields) | D7: 2013 | F7: 2013 | H7: 2013 | J7: 2013 | L7: 2014
A9: Net Investment Income
A10: Fixed maturities | D10: 64.7 | F10: 62.6 | H10: 63 | J10: 64.5 | L10: 64.7
A11: Equity securities | D11: 3.1 | F11: 4.9 | H11: 4 | J11: 3.6 | L11: 3.4
A12: Other investments | D12: 2.2 | F12: 2.8 | H12: 1.3 | J12: 2.5 | L12: 1.5
A13: Investment expenses | D13: -2.7 | F13: -2.4 | H13: -2.6 | J13: -2.5 | L13: -2.6
A14: Total | D14: 67.3 | F14: 67.9 | H14: 65.7 | J14: 68.1 | L14: 67
A17: Pre-tax Yields
A19: Fixed maturities | D19: 0.0403 | F19: 0.0398 | H19: 0.0399 | J19: 0.0386 | L19: 0.0379
A20: Total | D20: 0.0364 | F20: 0.0371 | H20: 0.0361 | J20: 0.0359 | L20: 0.0347
A24: Pre-tax yields are calculated as annualized net investment income divided by the average of investment balances, excluding unrealized capital gains and losses, at the end of each month during the period.

Sheet 14
A1: THE HANOVER INSURANCE GROUP
A2: INVESTMENT PORTFOLIO
A3: March 31, 2014
B7: (In millions)
K8: Change in
D9: Weighted | I9: Net | K9: Net
D10: Average | E10: Amortized | F10: Fair | G10: % of | I10: Unrealized | K10: Unrealized
B11: Investment Type | D11: Quality | E11: Cost or Cost | F11: Value | G11: Total | I11: Gain (Loss) | K11: YTD
B13: Fixed maturities:
B14: U.S. Treasury and government agencies | D14: AAA | E14: 402 | F14: 396.6 | G14: 0.048 | I14: -5.4 | K14: 5.5
B15: Foreign government | D15: AAA | E15: 317.3 | F15: 319.1 | G15: 0.039 | I15: 1.8 | K15: 1.3
B16: Municipals:
C17: Taxable | D17: AA | E17: 951.4 | F17: 986.2 | G17: 0.12 | I17: 34.8 | K17: 16.9
C18: Tax exempt | D18: AA | E18: 145.7 | F18: 148.8 | G18: 0.018 | I18: 3.1 | K18: 2.7
B19: Corporate:
B20: NAIC 1 | C20: NAIC 1 | D20: A | E20: 1878.4 | F20: 1947.4 | G20: 0.237 | I20: 69 | K20: 12.7
B21: NAIC 2 | C21: NAIC 2 | D21: BBB | E21: 1453.3 | F21: 1526.6 | G21: 0.186 | I21: 73.3 | K21: 12.5
B22: NAIC 3 and below | C22: NAIC 3 and below | D22: B+ | E22: 369.2 | F22: 390.5 | G22: 0.047 | I22: 21.3 | K22: 4.4
B23: Total corporate | D23: BBB+ | E23: 3700.9 | F23: 3864.5 | G23: 0.47 | I23: 163.6 | K23: 29.6
B24: Asset backed:
C25: Residential mortgage-backed | D25: AA | E25: 697.2 | F25: 707.5 | G25: 0.086 | I25: 10.3 | K25: 4.3
C26: Commercial mortgage-backed | D26: AA+ | E26: 405.5 | F26: 413.3 | G26: 0.05 | I26: 7.8 | K26: 2.1
C27: Asset-backed | D27: AAA | E27: 169.8 | F27: 171.5 | G27: 0.021 | I27: 1.7 | K27: -0.1
B28: Total fixed maturities | D28: A+ | E28: 6789.8 | F28: 7007.5 | G28: 0.852 | I28: 217.7 | K28: 62.3
B29: Equity securities | E29: 421.7 | F29: 501 | G29: 0.061 | I29: 79.3 | K29: 15.6
B30: Other investments | E30: 232.5 | F30: 235.8 | G30: 0.029 | I30: 3.3 | K30: 0.1
B31: Total investments | E31: 7444 | F31: 7744.3 | G31: 0.942 | I31: 300.3 | K31: 78
B32: Cash and cash equivalents | E32: 476.3 | F32: 476.3 | G32: 0.058 | I32: 0 | K32: 0
B33: Total | E33: 7920.3 | F33: 8220.6 | G33: 1 | I33: 300.3 | K33: 78
B74: (1) Includes catastrophe loss adjustment expenses of $6.3 million and $1.4 million in our commercial multiple peril line and other commercial lines, respectively, for the year ended December 31, 2012.

Sheet 15
A1: THE HANOVER INSURANCE GROUP
A2: CREDIT QUALITY AND DURATION OF FIXED MATURITIES
A3: March 31, 2014
A5: (In millions)
A7: CREDIT QUALITY OF FIXED MATURITIES
C9: Rating Agency | D9: Amortized | G9: Fair | I9: % of Total
B10: NAIC Designation | C10: Equivalent Designation | D10: Cost | G10: Value | I10: Fair Value
B12: 1 | C12: Aaa/Aa/A | E12: 4888.7 | G12: 5008.9 | I12: 0.715
B13: 2 | C13: Baa | E13: 1516.1 | G13: 1590.8 | I13: 0.227
B14: 3 | C14: Ba | E14: 170.4 | G14: 180.3 | I14: 0.026
B15: 4 | C15: B | E15: 167.9 | G15: 177.9 | I15: 0.025
B16: 5 | C16: Caa and lower | E16: 44.6 | G16: 47.1 | I16: 0.007
B17: 6 | C17: In or near default | E17: 2.1 | G17: 2.5 | I17: - %
A18: Total fixed maturities | E18: 6789.8 | G18: 7007.5 | I18: 1
B22: DURATION OF FIXED MATURITIES
D24: Amortized | G24: Fair | I24: % of Total
D25: Cost | G25: Value | I25: Fair Value
C27: 0-2 years | E27: 1594.7 | G27: 1636.4 | I27: 0.234
C28: 2-4 years | E28: 1805 | G28: 1889.9 | I28: 0.27
C29: 4-6 years | E29: 1670.8 | G29: 1744.4 | I29: 0.249
C30: 6-8 years | E30: 1371.1 | G30: 1387.3 | I30: 0.198
C31: 8-10 years | E31: 283.7 | G31: 283.6 | I31: 0.04
C32: 10+ years | E32: 64.5 | G32: 65.9 | I32: 0.009
C33: Total fixed maturities | E33: 6789.8 | G33: 7007.5 | I33: 1
C35: Weighted Average Duration | E35: 4.11
B74: (1) Includes catastrophe loss adjustment expenses of $6.3 million and $1.4 million in our commercial multiple peril line and other commercial lines, respectively, for the year ended December 31, 2012.

Sheet 16
B1: THE HANOVER INSURANCE GROUP
B2: TOP 10 CORPORATE AND MUNICIPAL FIXED MATURITY HOLDINGS
B3: March 31, 2014
C6: (In millions, except percentage data)
C7: Issuer | D7: Amortized Cost | E7: Fair Value | F7: As a Percent of Invested Assets | G7: S&P Ratings
C8: Royal Bank of Scotland: (1)
C9: Term deposits | D9: 81.3 | E9: 82.6 | F9: 0.01 | G9: BBB+
C10: Notes | D10: 16.2 | E10: 16.7 | F10: 0.002 | G10: A
C11: Lloyds Bank: (2)
C12: Term deposits | D12: 48.8 | E12: 48.1 | F12: 0.0058 | G12: A
C13: Notes | D13: 9.8 | E13: 10.2 | F13: 0.0012 | G13: A-
C14: GE Capital | D14: 32.7 | E14: 34.2 | F14: 0.0042 | G14: AA+
C15: Citigroup | D15: 28.6 | E15: 30.1 | F15: 0.0037 | G15: A-
C16: American Express | D16: 28.4 | E16: 29.6 | F16: 0.0036 | G16: A-
C17: JP Morgan | D17: 25.9 | E17: 26.9 | F17: 0.0033 | G17: A
C18: Bank of America | D18: 25.8 | E18: 27.5 | F18: 0.0033 | G18: BBB+
C19: Wells Fargo | D19: 24.8 | E19: 26.8 | F19: 0.0033 | G19: A+
C20: Rabobank Nederland | D20: 24.4 | E20: 24.5 | F20: 0.003 | G20: AA-
C21: CVS Caremark | D21: 22.6 | E21: 24.5 | F21: 0.003 | G21: BBB+
C22: Top 10 Corporate and Municipal Fixed | D22: 369.3 | E22: 381.7 | F22: 0.0464
C24: (1) UK government owns 83% of bank equity
C25: (2) UK government owns 25% of bank equity
B73: (1) Includes catastrophe loss adjustment expenses of $6.3 million and $1.4 million in our commercial multiple peril line and other commercial lines, respectively, for the year ended December 31, 2012.

Sheet 17
A2: THE HANOVER INSURANCE GROUP
A3: RECONCILIATION OF OPERATING INCOME TO NET INCOME
C8: Three Months ended March 31
C9: 2014 | H9: 2013
A10: (In millions, except per share data) | D10: $ | E10: Per Share (Diluted) | I10: $ | J10: Per Share (Diluted)
A11: OPERATING INCOME (LOSS)
A12: Commercial Lines | C12: $ | D12: 16100000 | H12: $ | I12: 33000000
A13: Personal Lines | D13: 21600000 | I13: 30500000
A14: Chaucer | D14: 49200000 | I14: 40900000
A15: Other | D15: -1900000 | I15: -2200000
A16: Total | D16: 85000000 | I16: 102200000
A18: Interest expense | D18: -16300000 | I18: -14700000
A20: Operating income before income taxes | D20: 68700000 | E20: $ | F20: 1.53 | I20: 87500000 | J20: $ | K20: 1.93
A22: Income tax expense on operating income | D22: -21700000 | F22: -0.48 | I22: -27600000 | K22: -0.61
A24: Operating income after income taxes | D24: 47000000 | F24: 1.05 | I24: 59900000 | K24: 1.32
A25: Net realized investment gains | D25: 4400000 | F25: 0.1 | I25: 8100000 | K25: 0.18
A26: Loss from repayment of debt | D26: 0 | F26: 0 | I26: -7800000 | K26: -0.17
A27: Net benefit (costs) related to acquired businesses | D27: -900000 | F27: -0.02 | I27: 400000 | K27: 0.01
A28: Net foreign exchange gains (losses) | D28: -100000 | F28: 0 | I28: 700000 | K28: 0.02
A29: Income tax benefit
A30: on non-operating items | D30: 4300000 | F30: 0.09 | I30: 5100000 | K30: 0.11
A31: Income from continuing operations, net of taxes | D31: 54700000 | F31: 1.22 | I31: 66400000 | K31: 1.47
A33: Discontinued operations, net of taxes | D33: -100000 | F33: 0 | I33: -200000 | K33: -0.01
A34: NET INCOME | C34: $ | D34: 54600000 | E34: $ | F34: 1.22 | H34: $ | I34: 66200000 | J34: $ | K34: 1.46

Sheet 18
A2: Non-GAAP Financial Measures
B4: The Hanover uses non-GAAP financial measures as important measures of the Company’s operating performance, which we believe provide investors with additional information regarding management’s evaluation of our results of operations and financial performance. The Company's non-GAAP measures include operating income before interest expense and taxes, total operating income after taxes, total operating income after taxes per share, total book value per share, total book value per share excluding net unrealized gains and losses related to investments, net of tax, tangible book value per share and measures of operating income and loss ratios excluding catastrophe losses and reserve development. After-tax operating income EPS (sometimes referred to as “after-tax operating income per share”) is a non-GAAP measure. It is defined as net income (loss) excluding the after-tax impact of net realized investment gains (losses), as well as results from discontinued operations for a period divided by the average number of diluted shares of common stock.
B6: Operating income before interest expense and taxes is net income, excluding interest expense on debt, income taxes and net realized investment gains and losses, because fluctuations in these gains and losses are determined by interest rates, financial markets and the timing of sales. Operating income before interest expense and taxes also excludes net gains and losses on disposals of businesses, discontinued operations, restructuring costs, extraordinary items, the cumulative effect of accounting changes and certain other items. Operating income before interest expense and taxes is the sum of the operating income from: Commercial Lines, Personal Lines, Chaucer, and Other. The Hanover believes that measures of operating income before interest expense and taxes provide investors with a valuable measure of the performance of the Company’s ongoing businesses because they highlight net income attributable to the core operations of the business.
B8: Book value per share is total shareholders’ equity divided by the number of common shares outstanding. Book value per share excluding net unrealized gains and losses related to investments, net of tax is total shareholders’ equity excluding the after-tax effect of unrealized investment gains and losses divided by the number of common shares outstanding. Tangible book value per share is total shareholders' equity, excluding goodwill, divided by the number of common shares outstanding.
B10: The Hanover also provides measures of operating income and loss ratios that exclude the effects of catastrophe losses. A catastrophe is a severe loss, resulting from natural or manmade events, including risks such as fire, hurricane, earthquake, windstorm, explosion, terrorism or other similar events. Each catastrophe has unique characteristics. Catastrophes are not predictable as to timing or loss amount in advance. The Hanover believes that providing certain financial metrics and trends excluding the effects of catastrophes is meaningful for investors to understand the variability of periodic earnings and loss ratios.
B12: Prior year reserve development, which can be favorable or unfavorable, represents changes in our estimate of the costs to pay claims from prior years. We believe that a discussion of operating income excluding prior year reserve development is helpful to investors since it provides insight into both our estimate of current year accident results and changes to prior-year reserve estimates.
B14: Operating income before and after interest expense and taxes and measures of operating income that exclude the effects of catastrophe losses or reserve development should not be construed as substitutes for net income determined in accordance with GAAP. A reconciliation of income from continuing operations to operating income before interest expense and taxes and income from continuing operations per share to operating income after taxes per share for the three months ended March 31, 2014 and 2013 is set forth on page 17 of this document. The presentation of loss ratios calculated excluding the effects of reserve development and/or catastrophe losses should not be construed as a substitute for loss ratios determined in accordance with GAAP.
B74: (1) Includes catastrophe loss adjustment expenses of $6.3 million and $1.4 million in our commercial multiple peril line and other commercial lines, respectively, for the year ended December 31, 2012.

Sheet 19
B3: CORPORATE OFFICES AND | I3: INDUSTRY RATINGS AS OF APRIL 29, 2014 | P3: TRANSFER AGENT
B4: PRINCIPAL SUBSIDIARIES
B6: THE HANOVER INSURANCE GROUP, INC. | K6: A.M. | L6: Standard | P6: Computershare Investor Services
B7: 440 Lincoln Street | I7: Financial Strength Ratings | K7: Best | L7: & Poor's | M7: Moody's | P7: PO Box 30170
B8: Worcester, MA 01653 | J8: The Hanover Insurance | P8: College Station, TX 77842-3170
J9: Company | K9: A | L9: A- | M9: A3 | P9: 1-800-317-4454
B10: The Hanover Insurance Company | J10: Citizens Insurance Company
B11: 440 Lincoln Street | J11: of America | K11: A | L11: A- | M11: -
B12: Worcester, MA 01653
P13: COMMON STOCK
B14: Citizens Insurance Company of America | K14: A.M. | L14: Standard
B15: 808 North Highlander Way | I15: Debt Ratings | K15: Best | L15: & Poor's | M15: Moody's | P15: Common stock of The Hanover Insurance Group is traded on the New
B16: Howell, MI 48843 | J16: The Hanover Insurance Group, Inc. | P16: York Stock Exchange under the symbol "THG".
J17: Senior Debt | K17: bbb | L17: BBB- | M17: Baa3
B18: Chaucer Holdings PLC | J18: Subordinated Debentures | K18: bb+ | L18: BB | M18: Ba1
B19: Plantation Place | P19: INQUIRIES
B20: 30 Fenchurch Street
B21: London | P21: Oksana Lukasheva
B22: EC3M 3AD | P22: Vice President
P23: Investor Relations
B24: MARKET AND DIVIDEND INFORMATION | P24: (508) 855-2063
P25: olukasheva@hanover.com
B26: The following tables set forth the high and low closing
B27: sales prices of our common stock and cash dividends
B28: for the periods indicated: | P28: INVESTOR INFORMATION LINE
B30: Quarter Ended | C30: 2014 | P30: Dial 1-800-407-5222 to receive additional printed information,
C31: Price Range | E31: Dividends | P31: fax-on-demand services or other prerecorded messages.
C32: High | D32: Low | E32: Per Share
B33: ="March 31" -> March 31 | C33: 61.44 | D33: 53.14 | E33: 0.37 | P33: Please visit our internet site at http:// www.Hanover.com
B39: Quarter Ended | C39: 2013
C40: Price Range | E40: Dividends
C41: High | D41: Low | E41: Per Share
B42: ="March 31" -> March 31 | C42: 49.68 | D42: 39.19 | E42: 0.33
B43: ="June 30" -> June 30 | C43: 51.66 | D43: 46.73 | E43: 0.33
B44: ="September 30" -> September 30 | C44: 56.06 | D44: 48.67 | E44: 0.33
B45: ="December 31" -> December 31 | C45: 60.99 | D45: 54.83 | E45: 0.37
B75: (1) Includes catastrophe loss adjustment expenses of $6.3 million and $1.4 million in our commercial multiple peril line and other commercial lines, respectively, for the year ended December 31, 2012.

Sheet BS Equity Parentheticals (hidden)
A2: FOOTNOTE INPUT
A3: =FORMQTR&", "&VALUE(CV) -> 
A6: Page # | B6: Footnote | G6: ="YTD "&RIGHT(CV,2) ->  | J6: ="YTD "&RIGHT(PV,2) -> 
G9: CENTER-SUM | J9: =+G9 -> CENTER-SUM
G10: PRODUCT | J10: =+G10 -> PRODUCT
G11: LEGAL | J11: LEGAL
G12: PROD-Q | J12: PROD-Q
G13: =VALUE(CV)&" Actuals" ->  | J13: =VALUE(PV)&" Actuals" -> 
G14: =CY ->  | J14: =PYE -> 
G15: BOOK TYPE | J15: BOOK TYPE
A17: 3 | B17: Commons Stock Issued
B18: Commons Stock Issued | C18: =+CSISSUE_CY -> 60.5 | F18: ICSTOCK | G18: =ROUND(G19/1000000,1) -> 60.5 | I18: ICSTOCK | J18: =ROUND(J19/1000000,1) -> 60.5
F19: ICSTOCK | G19: 60475872 | I19: ICSTOCK | J19: 60475872
A20: 3 | B20: Treasury Stock Shares Outstanding
B21: Treasury Stock Shares Outstanding - per essbase | C21: =+TSOUT_CY -> 16.7 | F21: TSTOCKOUT | G21: =(ROUND(G22/1000000,1))+(M21/1000000) -> 16.2 | I21: TSTOCKOUT | J21: =(ROUND(J22/1000000,1))+(P21/1000000) -> 16.2
B22: Common shares outstanding | C22: =ROUND('2'!K53/1000000,1) -> 43.8 | F22: TSTOCKOUT | G22: 16209295 | I22: TSTOCKOUT | J22: 16177938
B23: Treasury Stock Shares Outstanding - rounded for balance sheet | C23: =+C18-C22 -> 16.7

Sheet Development (hidden)
B1: BOOK TYPE | C1: Product Qualifier | D1: Summary Centers | E1: Consolidated BU Rollup
B2: =CQ ->  | C2: =CQ ->  | D2: =CQ ->  | E2: =_TEB2 ->  | F2: =_TEB2 ->  | G2: =_TEB2 ->  | H2: =_TEB3 ->  | I2: =_TEB3 ->  | J2: =_TEB3 ->  | K2: =_TEB4 ->  | L2: =_TEB4 ->  | M2: =_TEB4 ->  | N2: =CQ ->  | O2: =CQ ->  | P2: =CQ ->  | Q2: =CY -> 
B3: =VALUE(PV)&" Actuals" ->  | C3: =VALUE(PV)&" Actuals" ->  | D3: =VALUE(PV)&" Actuals" ->  | E3: =VALUE(_TYR2)&" Actuals" ->  | F3: =VALUE(_TYR2)&" Actuals" ->  | G3: =VALUE(_TYR2)&" Actuals" ->  | H3: =VALUE(_TYR3)&" Actuals" ->  | I3: =VALUE(_TYR3)&" Actuals" ->  | J3: =VALUE(_TYR3)&" Actuals" ->  | K3: =VALUE(_TYR4)&" Actuals" ->  | L3: =VALUE(_TYR4)&" Actuals" ->  | M3: =VALUE(_TYR4)&" Actuals" ->  | N3: =VALUE(CV)&" Actuals" ->  | O3: =VALUE(CV)&" Actuals" ->  | P3: =VALUE(CV)&" Actuals" ->  | Q3: =VALUE(PV)&" Actuals" ->  | R3: =VALUE(PV)&" Actuals" ->  | S3: =VALUE(PV)&" Actuals" ->  | T3: =VALUE(CV)&" Actuals" ->  | U3: =VALUE(CV)&" Actuals" ->  | V3: =VALUE(CV)&" Actuals" -> 
B4: PY-Loss-Dev(Fav)Unfav | C4: PY-LAE-Dev(Fav)Unfav | D4: PYLOSS-LAE DEV (Fav)Unfav | E4: PY-Loss-Dev(Fav)Unfav | F4: PY-LAE-Dev(Fav)Unfav | G4: PYLOSS-LAE DEV (Fav)Unfav | H4: PY-Loss-Dev(Fav)Unfav | I4: PY-LAE-Dev(Fav)Unfav | J4: PYLOSS-LAE DEV (Fav)Unfav | K4: PY-Loss-Dev(Fav)Unfav | L4: PY-LAE-Dev(Fav)Unfav | M4: PYLOSS-LAE DEV (Fav)Unfav | N4: PY-Loss-Dev(Fav)Unfav | O4: PY-LAE-Dev(Fav)Unfav | P4: PYLOSS-LAE DEV (Fav)Unfav | Q4: PY-Loss-Dev(Fav)Unfav | R4: PY-LAE-Dev(Fav)Unfav | S4: PYLOSS-LAE DEV (Fav)Unfav | T4: PY-Loss-Dev(Fav)Unfav | U4: PY-LAE-Dev(Fav)Unfav | V4: PYLOSS-LAE DEV (Fav)Unfav
A5: Workers' Compensation | B5: -900000 | C5: -300000 | D5: -1200000 | E5: -1900000 | F5: 100000 | G5: -1800000 | H5: -2800000 | I5: 600000 | J5: -2200000 | K5: -2700000 | L5: -400000 | M5: -3100000 | N5: -3500000 | O5: 0 | P5: -3500000 | Q5: -900000 | R5: -300000 | S5: -1200000 | T5: -3500000 | U5: 0 | V5: -3500000
A6: Commercial Automobile | B6: 3100000 | C6: 400000 | D6: 3500000 | E6: 4100000 | F6: 1000000 | G6: 5100000 | H6: 3200000 | I6: 0 | J6: 3200000 | K6: 4000000 | L6: 800000 | M6: 4800000 | N6: 1400000 | O6: 400000 | P6: 1800000 | Q6: 3100000 | R6: 400000 | S6: 3500000 | T6: 1400000 | U6: 400000 | V6: 1800000
A7: Commercial Multiple Peril | B7: -4800000 | C7: -1100000 | D7: -5900000 | E7: -5000000 | F7: -1100000 | G7: -6100000 | H7: -3500000 | I7: 1900000 | J7: -1600000 | K7: -1200000 | L7: -400000 | M7: -1600000 | N7: -200000 | O7: 100000 | P7: -100000 | Q7: -4800000 | R7: -1100000 | S7: -5900000 | T7: -200000 | U7: 100000 | V7: -100000
A8: Other Property & Casualty | B8: 2600000 | C8: 1500000 | D8: 4100000 | E8: 13600000 | F8: 3700000 | G8: 17300000 | H8: 4400000 | I8: 600000 | J8: 5000000 | K8: 4900000 | L8: 4600000 | M8: 9500000 | N8: 1500000 | O8: 500000 | P8: 2000000 | Q8: 2600000 | R8: 1500000 | S8: 4100000 | T8: 1500000 | U8: 500000 | V8: 2000000
A9: Total Commercial | B9: 0 | C9: 500000 | D9: 500000 | E9: 10800000 | F9: 3700000 | G9: 14500000 | H9: 1300000 | I9: 3100000 | J9: 4400000 | K9: 5000000 | L9: 4600000 | M9: 9600000 | N9: -800000 | O9: 1000000 | P9: 200000 | Q9: 0 | R9: 500000 | S9: 500000 | T9: -800000 | U9: 1000000 | V9: 200000
A10: Personal Automobile | B10: 3800000 | C10: -300000 | D10: 3500000 | E10: 4000000 | F10: -800000 | G10: 3200000 | H10: 2900000 | I10: 400000 | J10: 3300000 | K10: 12100000 | L10: -900000 | M10: 11200000 | N10: 4600000 | O10: -100000 | P10: 4500000 | Q10: 3800000 | R10: -300000 | S10: 3500000 | T10: 4600000 | U10: -100000 | V10: 4500000
A11: Homeowners | B11: 200000 | C11: 100000 | D11: 300000 | E11: 3600000 | F11: -100000 | G11: 3500000 | H11: 400000 | I11: 0 | J11: 400000 | K11: 0 | L11: 100000 | M11: 100000 | N11: 1100000 | O11: -100000 | P11: 1000000 | Q11: 200000 | R11: 100000 | S11: 300000 | T11: 1100000 | U11: -100000 | V11: 1000000
A12: Personal Other | B12: 100000 | C12: -100000 | D12: 0 | E12: 1200000 | F12: -100000 | G12: 1100000 | H12: 100000 | I12: -200000 | J12: -100000 | K12: -100000 | L12: 100000 | M12: 0 | N12: 0 | O12: 100000 | P12: 100000 | Q12: 100000 | R12: -100000 | S12: 0 | T12: 0 | U12: 100000 | V12: 100000
A13: Total Personal | B13: 4100000 | C13: -300000 | D13: 3800000 | E13: 8800000 | F13: -1000000 | G13: 7800000 | H13: 3400000 | I13: 200000 | J13: 3600000 | K13: 12000000 | L13: -700000 | M13: 11300000 | N13: 5700000 | O13: -100000 | P13: 5600000 | Q13: 4100000 | R13: -300000 | S13: 3800000 | T13: 5700000 | U13: -100000 | V13: 5600000
A14: Opus Investment Mgmt | B14: - | C14: - | D14: - | E14: - | F14: - | G14: - | H14: - | I14: - | J14: - | K14: - | L14: - | M14: - | N14: - | O14: - | P14: - | Q14: - | R14: - | S14: - | T14: - | U14: - | V14: -
A15: AMGRO-PROD | B15: - | C15: - | D15: - | E15: - | F15: - | G15: - | H15: - | I15: - | J15: - | K15: - | L15: - | M15: - | N15: - | O15: - | P15: - | Q15: - | R15: - | S15: - | T15: - | U15: - | V15: -
A16: VOLPROD | B16: 200000 | C16: 0 | D16: 200000 | E16: 0 | F16: 0 | G16: 0 | H16: 800000 | I16: 0 | J16: 800000 | K16: 300000 | L16: 0 | M16: 300000 | N16: 300000 | O16: 300000 | P16: 600000 | Q16: 200000 | R16: 0 | S16: 200000 | T16: 300000 | U16: 300000 | V16: 600000
A17: CORP-OTHER | B17: - | C17: - | D17: - | E17: - | F17: - | G17: - | H17: - | I17: - | J17: - | K17: - | L17: - | M17: - | N17: - | O17: - | P17: - | Q17: - | R17: - | S17: - | T17: - | U17: - | V17: -
A18: OTHERP&C | B18: 200000 | C18: 0 | D18: 200000 | E18: 0 | F18: 0 | G18: 0 | H18: 800000 | I18: 0 | J18: 800000 | K18: 300000 | L18: 0 | M18: 300000 | N18: 300000 | O18: 300000 | P18: 600000 | Q18: 200000 | R18: 0 | S18: 200000 | T18: 300000 | U18: 300000 | V18: 600000
A19: P&C Products | B19: -17400000 | C19: 200000 | D19: -17200000 | E19: 14500000 | F19: 2700000 | G19: 17200000 | H19: -11600000 | I19: 3300000 | J19: -8300000 | K19: -11400000 | L19: 3900000 | M19: -7500000 | N19: -8100000 | O19: 1200000 | P19: -6900000 | Q19: -17400000 | R19: 200000 | S19: -17200000 | T19: -8100000 | U19: 1200000 | V19: -6900000

Sheet Proof-THG (hidden)
A2: Financial Highlights
A3: =FORMQTR&", "&VALUE(CV) -> 
E4: =CQ&"' "&RIGHT(CV,2) ->  | G4: =CQ&"' "&RIGHT(PV,2) ->  | L4: ="YTD"&" "&RIGHT(CV,2) ->  | N4: ="YTD"&" "&RIGHT(PV,2) -> 
B5: Page #'s | E5: Variance | G5: Variance | I5: Page #'s | L5: Variance | N5: Variance
A7: SEGMENT INCOME
A8: Property and Casualty
A9: Personal Lines | B9: 1 | C9: 9 | E9: =+#REF!-#REF! ->  | G9: =+#REF!-#REF! ->  | I9: =+$B$9 -> 1 | J9: 10 | L9: =+#REF!-#REF! ->  | N9: =+#REF!-#REF! -> 
A10: Commercial Lines | B10: =+B$9 -> 1 | C10: 9 | E10: =+#REF!-#REF! ->  | G10: =+#REF!-#REF! ->  | I10: =+$B$9 -> 1 | J10: =+J9 -> 10 | L10: =+#REF!-#REF! ->  | N10: =+#REF!-#REF! -> 
A11: Other | B11: 1 | C11: 9 | E11: =+#REF!-#REF! ->  | G11: =+#REF!-#REF! ->  | I11: =+$B$9 -> 1 | J11: =+J9 -> 10 | L11: =+#REF!-#REF! ->  | N11: =+#REF!-#REF! -> 
A12: Total Property and Casualty | B12: 1 | C12: 9 | E12: =+#REF!-#REF! ->  | G12: =+#REF!-#REF! ->  | I12: =+$B$9 -> 1 | J12: =+J9 -> 10 | L12: =+#REF!-#REF! ->  | N12: =+#REF!-#REF! -> 
A14: Life Companies | B14: =+B9 -> 1 | C14: 13 | E14: =+#REF!-#REF! ->  | G14: =+#REF!-#REF! ->  | I14: =+B9 -> 1 | J14: 13 | L14: =+#REF!-#REF! ->  | N14: =+#REF!-#REF! -> 
A16: Income Reconciliation
A17: Income from continuing operations, net of taxes | B17: =+B9 -> 1 | C17: 4 | E17: =+#REF!-'3'!C27 ->  | G17: =+#REF!-'3'!E27 ->  | I17: =+$B$17 -> 1 | J17: =+$C$17 -> 4 | L17: =+#REF!-'3'!#REF! ->  | N17: =+#REF!-'3'!#REF! -> 
A18: (Loss) Income from operations of discontinued FAFLIC
A19: business, net of taxes | B19: =+B$17 -> 1 | C19: =+C$17 -> 4 | E19: =+#REF!-'3'!C29 ->  | G19: =+#REF!-'3'!E29 ->  | I19: =+$B$17 -> 1 | J19: =+$C$17 -> 4 | L19: =+#REF!-'3'!#REF! ->  | N19: =+#REF!-'3'!#REF! -> 
A20: Income from operations of AMGRO, net of taxes | B20: 1 | C20: 4 | E20: =+#REF!-'3'!#REF! ->  | G20: =+#REF!-'3'!#REF! ->  | I20: 1 | J20: 4 | L20: =+#REF!-'3'!#REF! ->  | N20: =+#REF!-'3'!#REF! -> 
A21: Gain on disposal of variable business | B21: =+B$17 -> 1 | C21: 4 | E21: =+#REF!-'3'!#REF! ->  | G21: =+#REF!-'3'!#REF! ->  | I21: 1 | J21: 4 | L21: =+#REF!-'3'!#REF! ->  | N21: =+#REF!-'3'!#REF! -> 
A22: Income before cumulative effect of accounting change | B22: 1 | C22: 4 | E22: =+#REF!-'3'!#REF! ->  | G22: =+#REF!-'3'!#REF! ->  | I22: 1 | J22: 4 | L22: =+#REF!-'3'!#REF! ->  | N22: =+#REF!-'3'!#REF! -> 
A23: Other | B23: 1 | C23: 4 | E23: =+#REF!-'3'!#REF! ->  | G23: =+#REF!-'3'!#REF! ->  | I23: 1 | J23: 4 | L23: =+#REF!-'3'!#REF! ->  | N23: =+#REF!-'3'!#REF! -> 
A24: Net (loss) income | B24: 1 | C24: 4 | E24: =+#REF!-'3'!C31 ->  | G24: =+#REF!-'3'!E31 ->  | I24: 1 | J24: 4 | L24: =+#REF!-'3'!#REF! ->  | N24: =+#REF!-'3'!#REF! -> 
A26: Shareholders' Equity
A27: The Hanover Insurance Company (consolidated) | B27: 3 | C27: 8 | E27: =+#REF!-#REF! ->  | G27: =+#REF!-#REF! ->  | I27: xxxxxxxxxx | J27: xxxxxxx | L27: xxxxxxxxxxx | N27: xxxxxxxxxxx
A28: First Allmerica Financial Life Ins Company (consolidated) | B28: =+B27 -> 3 | C28: 14 | E28: =+#REF!-#REF! ->  | G28: =+#REF!-#REF! ->  | I28: xxxxxxxxxx | J28: xxxxxxx | L28: xxxxxxxxxxx | N28: xxxxxxxxxxx
A29: THG Holding Company debt (1) | B29: =+B27 -> 3 | C29: PQ | E29: =+#REF!-#REF! ->  | G29: =+#REF!+499.5*1000000 ->  | I29: xxxxxxxxxx | J29: xxxxxxx | L29: xxxxxxxxxxx | N29: xxxxxxxxxxx
A30: Total shareholders' equity | B30: =+B27 -> 3 | C30: 6 | E30: =+#REF!-'4'!C45 ->  | G30: =+#REF!-'4'!E45 ->  | I30: xxxxxxxxxx | J30: xxxxxxx | L30: xxxxxxxxxxx | N30: xxxxxxxxxxx
A32: PER SHARE DATA (DILUTED):
A33: Income from continuing operations, net of taxes | B33: 2 | C33: 5 | E33: =+#REF!-#REF! ->  | G33: =+#REF!-#REF! ->  | I33: =+$B$33 -> 2 | J33: =+$C$33 -> 5 | L33: =+#REF!-#REF! ->  | N33: =+#REF!-#REF! -> 
A34: (Loss) Income from operations of discontinued FAFLIC
A35: business, net of taxes | B35: =+$B$33 -> 2 | C35: =+$C$33 -> 5 | E35: =+#REF!-#REF! ->  | G35: =+#REF!-#REF! ->  | I35: =+$B$33 -> 2 | J35: =+$C$33 -> 5 | L35: =+#REF!-#REF! ->  | N35: =+#REF!-#REF! -> 
A36: Income from operations of AMGRO, net of taxes | B36: =+$B$33 -> 2 | C36: =+$C$33 -> 5 | E36: =+#REF!-#REF! ->  | G36: =+#REF!-#REF! ->  | I36: =+$B$33 -> 2 | J36: =+$C$33 -> 5 | L36: =+#REF!-#REF! ->  | N36: =+#REF!-#REF! -> 
A37: Gain on disposal of variable business | B37: =+$B$33 -> 2 | C37: =+$C$33 -> 5 | E37: =+#REF!-#REF! ->  | G37: =+#REF!-#REF! ->  | I37: =+$B$33 -> 2 | J37: =+$C$33 -> 5 | L37: =+#REF!-#REF! ->  | N37: =+#REF!-#REF! -> 
A38: Other | B38: =+$B$33 -> 2 | C38: =+$C$33 -> 5 | E38: =+#REF!-#REF! ->  | G38: =+#REF!-#REF! ->  | I38: =+$B$33 -> 2 | J38: =+$C$33 -> 5 | L38: =+#REF!-#REF! ->  | N38: =+#REF!-#REF! -> 
A39: Cumulative effect of change in accounting
A40: principle, net of taxes | B40: =+$B$33 -> 2 | C40: =+$C$33 -> 5 | E40: =+#REF!-#REF! ->  | G40: =+#REF!-#REF! ->  | I40: =+$B$33 -> 2 | J40: =+$C$33 -> 5 | L40: =+#REF!-#REF! ->  | N40: =+#REF!-#REF! -> 
A41: Net income | B41: =+$B$33 -> 2 | C41: =+$C$33 -> 5 | E41: =+#REF!-#REF! ->  | G41: =+#REF!-#REF! ->  | I41: =+$B$33 -> 2 | J41: =+$C$33 -> 5 | L41: =+#REF!-#REF! ->  | N41: =+#REF!-#REF! -> 

Sheet Proof-BS (hidden)
A1: CONSOLIDATED BALANCE SHEETS
G2: THG
C3: THG | E3: P&C | G3: less P&C | I3: Ref # | K3: Variance | L3: Comments
A4: ASSETS | C4: SS Page #6 | E4: SS Page #8
A5: Investments:
A6: Fixed maturities, at fair value | C6: =+'4'!C10 -> 7007500000 | E6: =+#REF! ->  | G6: =+C6-E6 ->  | I6: 1 | K6: =SUM(G6)-SUM(#REF!) -> 
A7: =" Equity securities, at fair value" -> Equity securities, at fair value | C7: =+'4'!C11 -> 501000000 | E7: =+#REF! ->  | G7: =+C7-E7 ->  | I7: 2 | K7: =SUM(G7)-SUM(#REF!) ->  | L7: Rounding must go to P&C or Life
A8: Mortgage loans | C8: =+'4'!#REF! ->  | E8: =+#REF! ->  | G8: =+C8-E8 ->  | I8: 3 | K8: =SUM(G8)-SUM(#REF!) ->  | L8: ok - mtg elim
A9: Policy loans | C9: =+'4'!#REF! ->  | G9: =+C9-E9 ->  | I9: 4 | K9: =SUM(G9)-SUM(#REF!) -> 
A10: Other long-term investments | C10: =+'4'!C12 -> 235800000 | E10: =+#REF! ->  | G10: =+C10-E10 ->  | I10: 5 | K10: =SUM(G10)-SUM(#REF!) -> 
A11: Total investments | C11: =+'4'!C13 -> 7744300000 | E11: =+#REF! ->  | G11: xxxxxxxxxxxxxxxx
A12: Cash and cash equivalents | C12: =+'4'!C14 -> 476300000 | E12: =+#REF! ->  | G12: =+C12-E12 ->  | I12: 6 | K12: =SUM(G12)-SUM(#REF!) -> 
A13: Accrued investment income | C13: =+'4'!C15 -> 70700000 | E13: =+#REF! ->  | I13: 7 | K13: =SUM(G13)-SUM(#REF!) -> 
A14: Premiums, accounts and notes receivable, net | C14: =+'4'!C16 -> 1415800000 | E14: =+#REF! ->  | I14: 8 | K14: =SUM(G14)-SUM(#REF!) -> 
A15: Reinsurance receivable on paid and unpaid
A16: losses, benefits and unearned premiums | C16: =+'4'!C17 -> 2379300000 | E16: =+#REF! ->  | I16: 9 | K16: =SUM(G16)-SUM(#REF!) -> 
A17: Deferred policy acquistion costs | C17: =+'4'!C18 -> 520100000 | E17: =+#REF! ->  | I17: 10 | K17: =SUM(G17)-SUM(#REF!) -> 
A18: Deferred federal income taxes | C18: =+'4'!C19 -> 200900000 | E18: =+#REF! ->  | I18: 11 | K18: =SUM(G18)-SUM(#REF!) -> 
A19: Goodwill | C19: =+'4'!C20 -> 185000000 | E19: =+#REF! ->  | I19: 12 | K19: =SUM(G19)-SUM(#REF!) -> 
A20: Other assets | C20: =+'4'!C21 -> 534300000 | E20: =+#REF! ->  | I20: 13 | K20: =SUM(G20)-SUM(#REF!-#REF!-#REF!) -> 
A21: Separate account assets | C21: =+'4'!#REF! ->  | I21: n/a
A22: Total assets | C22: =+'4'!C23 -> 13643000000 | E22: =+#REF! ->  | G22: xxxxxxxxxxxxxxxx | K22: =SUM(K6:K20) -> 
A24: LIABILITIES AND SHAREHOLDERS' EQUITY
A26: LIABILITIES
A27: Policy liabilities and accruals:
A28: Future policy benefits | C28: =+'4'!#REF! ->  | G28: =+C28-E28 ->  | I28: 14 | K28: =SUM(G28)+SUM(#REF!) -> 
A29: Outstanding claims, losses and loss adjustment expenses | C29: =+'4'!C28 -> 6323400000 | E29: =+#REF! ->  | G29: =+C29-E29 ->  | I29: 15 | K29: =SUM(G29)+SUM(#REF!) -> 
A30: Unearned premiums | C30: =+'4'!C29 -> 2593700000 | E30: =+#REF! ->  | G30: =+C30-E30 ->  | I30: 16 | K30: =SUM(G30)+SUM(#REF!) -> 
A31: Contractholder deposit funds and other policy liabilities | C31: =+'4'!#REF! ->  | E31: =+#REF! ->  | G31: =+C31-E31 ->  | I31: 17 | K31: =SUM(G31)+SUM(#REF!) -> 
A32: Total policy liabilities and accruals | C32: =+'4'!#REF! ->  | E32: =+#REF! ->  | G32: xxxxxxxxxxxxxxxx
A33: Expenses and taxes payable | C33: =+'4'!C30 -> 576100000 | E33: =+#REF! ->  | G33: =+C33-E33 ->  | I33: 18 | K33: =SUM(G33)+SUM(#REF!+#REF!) ->  | L33: Rounding is okay here.
A34: Reinsurance premiums payable | C34: =+'4'!C31 -> 448100000 | E34: =+#REF! ->  | G34: =+C34-E34 ->  | I34: 19 | K34: =SUM(G34)+SUM(#REF!) -> 
A35: Trust instruments supported by funding obligations | C35: =+'4'!#REF! ->  | G35: =+C35-E35 ->  | I35: 20 | K35: =SUM(G35)+SUM(#REF!) -> 
A36: Long-term debt | C36: =+'4'!C32 -> 903900000 | E36: =#REF! ->  | G36: =+C36-E36 ->  | I36: 21 | K36: =SUM(G36)+SUM(#REF!) ->  | L36: PDI
A37: Separate account liabilities | C37: =+'4'!#REF! ->  | G37: =+C37-E37 ->  | I37: 22 | K37: =SUM(G37)+SUM(#REF!) -> 
A38: Total liabilities | C38: =+'4'!C34 -> 10961900000 | E38: =+#REF! ->  | G38: xxxxxxxxxxxxxxxx
A40: SHAREHOLDERS' EQUITY
A41: Preferred stock, par value $xx per share;
A42: authorized xxx million shares; issued none | C42: =+'4'!C38 -> 0 | G42: =+C42-E42 -> 0 | I42: 23 | K42: =SUM(G42)+SUM(#REF!) -> 
A43: Common stock, par value $.xx per share; authorized xxx.0 million
A44: =" shares; issued" -> shares; issued | C44: =+'4'!C40 -> 600000 | E44: =+#REF! ->  | I44: 24 | K44: =SUM(G44)+SUM(#REF!) -> 
A45: Additional paid-in capital | C45: =+'4'!C41 -> 1821400000 | E45: =+#REF! ->  | I45: 25 | K45: =SUM(G45)+SUM(#REF!+#REF!) -> 
A46: Accumulated other comprehensive (loss) income | C46: =+'4'!C42 -> 228100000 | E46: =+#REF! ->  | I46: 26 | K46: =SUM(G46)+SUM(#REF!) ->  | L46: rounding ok here…assume variance is other P&C
A47: Retained earnings | C47: =+'4'!C43 -> 1387400000 | E47: =+#REF! ->  | I47: 27 | K47: =SUM(G47)+SUM(#REF!) ->  | L47: rounding ok here…assume variance is other P&C
A48: ="Treasury stock at cost" -> Treasury stock at cost | C48: =+'4'!C44 -> -756400000 | G48: -756400000 | I48: 28 | K48: =SUM(G48)+SUM(#REF!) -> 
A49: Total shareholders' equity | C49: =+'4'!C45 -> 2681100000 | E49: =+#REF! ->  | G49: xxxxxxxxxxxxxxxx
A50: Total liabilities and shareholders' equity | C50: =+'4'!C46 -> 13643000000 | E50: =+#REF! ->  | G50: xxxxxxxxxxxxxxxx
D55: = Items highlighted are not applicable to the individual business unit noted.
D57: = Items that should be zero (no reconciliation necessary).

Sheet BS Retrieve (hidden)
B1: BOOK TYPE | C1: Product Qualifier | D1: Corporate-Capacity | E1: 2010 Non Rounded | F1: =CY ->  | G1: All Products
B2: SMAFCO Consolidated | C2: Campania Consolidated | D2: Verlan Consolidated | E2: Benchmark Professionals Ins Svcs | F2: Educators Insurance Agency, Inc. | G2: Benchmark Purchasing Acctg Adj | H2: The Hanover Insurance Group Total | J2: Rounded
A3: Fixed Maturities | B3: 4581634875 | C3: 0 | D3: - | E3: - | F3: - | G3: - | H3: =SUM(B3:G3) -> 4581634875 | J3: =ROUND((H3+H4),) -> 4586400000
A4: S.T. Fixed Maturities | B4: 4803100.91 | C4: - | D4: 0 | E4: - | F4: - | G4: - | H4: 4803100.91
A5: Equity Securities | B5: 124677939.7 | C5: - | D5: - | E5: - | F5: - | G5: - | H5: 124677939.7 | J5: =+H5 -> 124700000
A6: Mortgage Loans Receivable | B6: 5665879.3 | C6: - | D6: - | E6: - | F6: - | G6: - | H6: 5665879.3 | J6: =+H6 -> 5700000
A7: Policy Loans Receivable | B7: - | C7: - | D7: - | E7: - | F7: - | G7: - | H7: 0 | J7: =+H7 -> 0
A8: Real Estate | B8: 8872141.81 | C8: - | D8: - | E8: - | F8: - | G8: - | H8: 8872141.81 | J8: =+H8+H9 -> 31900000
A9: Other Long Term Investments | B9: 23031525.02 | C9: - | D9: - | E9: - | F9: - | G9: - | H9: 23031525.02
A10: Cash & Cash Equivalents | B10: 235154256.1 | C10: 832049.63 | D10: 1538081.32 | E10: 133440.12 | F10: 1604867.52 | G10: - | H10: 239262694.7 | J10: =+H10 -> 239300000
A11: Accrued Investment Income Receivable | B11: 50705359.14 | C11: 0 | D11: 0 | E11: - | F11: - | G11: - | H11: 50705359.14 | J11: 50700000
A12: Premiums, Accounts, & Notes Receivable | B12: 807813790.6 | C12: 27205.66 | D12: - | E12: -6754.78 | F12: 188223.02 | G12: - | H12: 808022464.5 | J12: 808000000
A13: Total Reinsurance Receivables | B13: 1230299516 | C13: - | D13: - | E13: - | F13: - | G13: - | H13: 1230299516 | J13: 1230300000
A14: Deferred Policy Acquistion Costs | B14: 347163997.5 | C14: - | D14: - | E14: - | F14: - | G14: - | H14: 347163997.5 | J14: 347200000
A15: Deferred FIT | B15: - | C15: - | D15: - | E15: - | F15: - | G15: - | H15: 0 | J15: 0
A16: Deferred FIT Asset | B16: 119114560 | C16: 44367.91 | D16: -69038.63 | E16: - | F16: -0.01 | G16: -300437.22 | H16: 118789452 | J16: 118800000
A17: Goodwill | B17: 176180464.4 | C17: - | D17: 2572667.64 | E17: - | F17: 194000 | G17: 428228 | H17: 179375360 | J17: 179400000
A18: Property & Equipment | B18: 95925543.32 | C18: 164253.29 | D18: - | E18: - | F18: - | G18: - | H18: 96089796.61 | J18: =ROUND((H18+H21),-1) -> 375300000
A19: Other Assets (Receivable) | B19: 446477822.9 | C19: 74291.66 | D19: 3628827.04 | E19: 12857.22 | F19: 7150000 | G19: 1286620.86 | H19: 458630419.7
A20: Goodwill | B20: 176180464.4 | C20: - | D20: 2572667.64 | E20: - | F20: 194000 | G20: 428228 | H20: 179375360 | J20: =+H20 -> 179400000
H21: =SUM(H19)-SUM(H20) -> 279255059.7
A22: Assets of Discontinued Operations | B22: 134127301.2 | C22: - | D22: - | E22: - | F22: - | G22: - | H22: =SUM(B22:G22) -> 134127301.2 | J22: =+H22 -> 134100000
A23: ASSET | B23: 8215467608 | C23: 1142168.15 | D23: 5097869.73 | E23: 139542.56 | F23: 8943090.53 | G23: 986183.64 | H23: =SUM(B23:G23) -> 8231776463 | J23: =+H23 -> 8231800000
A27: Future Policy Benefits Payable | B27: - | C27: - | D27: - | E27: - | F27: - | G27: - | H27: =SUM(B27:G27) -> 0 | J27: =+H27 -> 0
A28: Outstanding Claims, Losses & LAE | B28: -3230006825 | C28: - | D28: - | E28: - | F28: - | G28: - | H28: -3230006825 | J28: =ROUND((H28+H30),) -> -3232100000
A29: Unearned Premiums Payable | B29: -1553550176 | C29: - | D29: - | E29: - | F29: - | G29: - | H29: -1553550176 | J29: =+H29 -> -1553600000
A30: Other Policy Funds & Liabilities | B30: -2087722.36 | C30: - | D30: - | E30: - | F30: - | G30: - | H30: -2087722.36
A31: Expenses & Taxes Payable | B31: -508976097.9 | C31: 82531.2 | D31: -1320768.68 | E31: -44886.96 | F31: -1505943.53 | G31: - | H31: -511765165.9 | J31: =ROUND((H31+H32),-1) -> -524800000
A32: Net Inter-Company | B32: -12824542.93 | C32: 41510.43 | D32: -85008.61 | E32: -33382.05 | F32: -139918.17 | G32: - | H32: -13041341.33
A33: Reinsurance Premiums Payable | B33: -33172296.41 | C33: - | D33: - | E33: - | F33: - | G33: - | H33: -33172296.41 | J33: =+H33 -> -33200000
A34: Trust Instruments Supported by Funding Obligations | B34: - | C34: - | D34: - | E34: - | F34: - | G34: - | H34: 0 | J34: 0
A35: Long-Term Debt | B35: -154045837.2 | C35: 0 | D35: - | E35: - | F35: - | G35: - | H35: -154045837.2 | J35: -154000000
A36: Deferred FIT | B36: - | C36: - | D36: - | E36: - | F36: - | G36: - | H36: 0 | J36: 0
A37: Separate Account Liabilities | B37: - | C37: - | D37: - | E37: - | F37: - | G37: - | H37: 0 | J37: 0
A38: Liabilities of Discontinued Operations | B38: -135253959.5 | C38: - | D38: - | E38: - | F38: - | G38: - | H38: -135253959.5 | J38: -135300000
A39: LIABILITY | B39: -5629917457 | C39: 124041.63 | D39: -1405777.29 | E39: -78269.01 | F39: -1645861.7 | G39: - | H39: -5632923323 | J39: -5632900000
A41: Capital Stock Preferred | B41: 0 | C41: - | D41: - | E41: - | F41: - | G41: - | H41: =SUM(B41:G41) -> 0 | J41: =+H41 -> 0
A42: Capital Stock Common | B42: -1045.22 | C42: 574617.84 | D42: 0 | E42: - | F42: -1000 | G42: - | H42: 572572.62 | J42: 600000
A43: Additional Paid-In Capital | B43: -786608243.4 | C43: -2585520.98 | D43: -21240437.78 | E43: - | F43: -7150000 | G43: -1063928 | H43: -818648130.1 | J43: -818600000
A44: Treasury Stock Additional Paid-In Capital | B44: - | C44: - | D44: - | E44: - | F44: - | G44: - | H44: 0 | J44: 0
A45: Unrealized Capital Gains(Losses) | B45: -164926688.3 | C45: - | D45: 0.08 | E45: - | F45: 0.01 | G45: - | H45: -164926688.2 | J45: -164900000
A46: Retained Earnings | B46: -1634014175 | C46: 744693.36 | D46: 17548345.26 | E46: -61273.55 | F46: -146228.84 | G46: 77744.36 | H46: -1615850894 | J46: -1615900000
A47: Treasury Stock | B47: 0 | C47: - | D47: - | E47: - | F47: - | G47: - | H47: 0 | J47: 0
A48: Total Stockholders Equity | B48: -2585550152 | C48: -1266209.78 | D48: -3692092.44 | E48: -61273.55 | F48: -7297228.83 | G48: -986183.64 | H48: -2598853140 | J48: -2598900000

Sheet Essbase - P&C BS (hidden)
B1: BOOK TYPE | C1: Product Qualifier | D1: Corporate-Capacity | F1: 2010 Non Rounded | G1: =CY ->  | H1: All Products
B2: SMAFCO Consolidated | C2: Campania Consolidated | D2: Verlan Consolidated | E2: Educators Insurance Agency, Inc. | F2: Benchmark Professionals Ins Svcs | G2: Benchmark Purchasing Acctg Adj | H2: The Hanover Insurance Group Total | J2: Rounded
A3: Fixed Maturities | B3: 4409339434 | C3: 0 | D3: - | E3: - | F3: - | G3: - | H3: =SUM(B3:G3) -> 4409339434 | J3: =ROUND((H3+H4),) -> 4417300000
A4: S.T. Fixed Maturities | B4: 7935675.6 | C4: - | D4: 0 | E4: - | F4: - | G4: - | H4: 7935675.6
A5: Equity Securities | B5: 127623741.8 | C5: - | D5: - | E5: - | F5: - | G5: - | H5: 127623741.8 | J5: =+H5 -> 127600000
A6: Mortgage Loans Receivable | B6: 5454367.29 | C6: - | D6: - | E6: - | F6: - | G6: - | H6: 5454367.29 | J6: =+H6 -> 5500000
A7: Policy Loans Receivable | B7: - | C7: - | D7: - | E7: - | F7: - | G7: - | H7: 0 | J7: =+H7 -> 0
A8: Real Estate | B8: 10384960.28 | C8: - | D8: - | E8: - | F8: - | G8: - | H8: 10384960.28
A9: Other Long Term Investments | B9: 23585156.47 | C9: - | D9: - | E9: - | F9: - | G9: - | H9: 23585156.47 | J9: =ROUND((H9+H8),-1) -> 34000000
A10: Cash & Cash Equivalents | B10: 218869711 | C10: 522117.91 | D10: 1530130.83 | E10: 1471047.1 | F10: 64741.73 | G10: - | H10: 222457748.6 | J10: =+H10 -> 222500000
A11: Accrued Investment Income Receivable | B11: 50428063.94 | C11: 0 | D11: 0 | E11: - | F11: - | G11: - | H11: 50428063.94 | J11: =+H11 -> 50400000
A12: Premiums, Accounts, & Notes Receivable | B12: 770447419.3 | C12: 37308.84 | D12: - | E12: 217709.27 | F12: 0 | G12: - | H12: 770702437.4 | J12: =+H12 -> 770700000
A13: Future Policy Benefits Receivable | B13: - | C13: - | D13: - | E13: - | F13: - | G13: -
A14: OSL-LIFEADJ | B14: - | C14: - | D14: - | E14: - | F14: - | G14: -
A15: OSL-PCADJ | B15: 1064780707 | C15: - | D15: - | E15: - | F15: - | G15: -
A16: Outstanding Claims, Losses, & LAE Receivable | B16: 1064780707 | C16: - | D16: - | E16: - | F16: - | G16: -
A17: UNPREM-PC | B17: 77849755.52 | C17: - | D17: - | E17: - | F17: - | G17: -
A18: UNPREM-LIFE | B18: - | C18: - | D18: - | E18: - | F18: - | G18: -
A19: Unearned Premiums Receivable | B19: 77849755.52 | C19: - | D19: - | E19: - | F19: - | G19: -
A20: Exhibit8-FG LIAB Reclass | B20: - | C20: - | D20: - | E20: - | F20: - | G20: -
A21: Reinsurance Recoverables | B21: 1119102937 | C21: - | D21: - | E21: - | F21: - | G21: -
A22: ORR-PCADJ | B22: -1064780707 | C22: - | D22: - | E22: - | F22: - | G22: -
A23: Ceded Reinsurance Recover Affiliates | B23: 5613938.74 | C23: - | D23: - | E23: - | F23: - | G23: -
A24: Ceded Reinsurance Receivable | B24: 0 | C24: - | D24: - | E24: - | F24: - | G24: -
A25: Group Conv Charges Receivable | B25: - | C25: - | D25: - | E25: - | F25: - | G25: -
A26: Amounts Recoverable On Reinsurance | B26: 0 | C26: - | D26: - | E26: - | F26: - | G26: -
A27: Commission & Expense Allowance Due-Reinsurance | B27: 1708850.17 | C27: - | D27: - | E27: - | F27: - | G27: -
A28: Experience Refund Receivable | B28: - | C28: - | D28: - | E28: - | F28: - | G28: -
A29: Other Reinsurance Receivable | B29: 61645018.77 | C29: - | D29: - | E29: - | F29: - | G29: -
A30: Total Reinsurance Receivables | B30: 1204275482 | C30: - | D30: - | E30: - | F30: - | G30: - | H30: =SUM(B30:G30) -> 1204275482 | J30: =+H30 -> 1204300000
A31: Deferred Policy Acquistion Costs | B31: 346674708.1 | C31: - | D31: - | E31: - | F31: - | G31: - | H31: 346674708.1 | J31: =+H31 -> 346700000
A32: Deferred FIT | B32: - | C32: - | D32: - | E32: - | F32: - | G32: - | H32: 0 | J32: =+H32 -> 0
A33: Deferred FIT Asset | B33: 154785750.8 | C33: 17960.91 | D33: -48826.13 | E33: -0.01 | F33: - | G33: -286483.06 | H33: 154468402.5 | J33: =+H33 -> 154500000
A34: Goodwill | B34: 175772914.4 | C34: - | D34: 2572667.64 | E34: 194000 | F34: - | G34: 428228 | H34: 178967810 | J34: =+H34 -> 179000000
A35: Property & Equipment | B35: 96621651.56 | C35: 0 | D35: - | E35: - | F35: - | G35: - | H35: 96621651.56 | J35: =ROUND((H35+H38),-1) -> 402100000
A36: Other Assets (Receivable) | B36: 473547849.5 | C36: 66713.56 | D36: 3201496.91 | E36: 6421447 | F36: 9642.96 | G36: 1246751.82 | H36: 484493901.8
A37: Goodwill | B37: 175772914.4 | C37: - | D37: 2572667.64 | E37: 194000 | F37: - | G37: 428228 | H37: 178967810 | J37: =+H37 -> 179000000
H38: =SUM(H36)-SUM(H37) -> 305526091.7
A39: Assets of Discontinued Operations | B39: 133633081.8 | C39: - | D39: - | E39: - | F39: - | G39: - | H39: =SUM(B39:G39) -> 133633081.8 | J39: =+H39 -> 133600000
A40: ASSET | B40: 8033607053 | C40: 644101.22 | D40: 4682801.61 | E40: 8110203.36 | F40: 74384.69 | G40: 960268.76 | H40: =SUM(B40:G40) -> 8048078812 | J40: =+H40 -> 8048100000
A44: Future Policy Benefits Payable | B44: - | C44: - | D44: - | E44: - | F44: - | G44: - | H44: =SUM(B44:G44) -> 0 | J44: =-H44 -> 0
A45: Outstanding Claims, Losses & LAE | B45: -3227564281 | C45: - | D45: - | E45: - | F45: - | G45: - | H45: -3227564281 | J45: =-ROUND((H45+H47),) -> 3229400000
A46: Unearned Premiums Payable | B46: -1522745682 | C46: - | D46: - | E46: - | F46: - | G46: - | H46: -1522745682 | J46: =-H46 -> 1522700000
A47: Other Policy Funds & Liabilities | B47: -1846090.61 | C47: - | D47: - | E47: - | F47: - | G47: - | H47: -1846090.61
A48: Expenses & Taxes Payable | B48: -451059498.9 | C48: 475424.94 | D48: -928965.21 | E48: -1157979.34 | F48: -321.41 | G48: - | H48: -452671340 | J48: =-ROUND((H48+H49),-1) -> 465500000
A49: Net Inter-Company | B49: -12759281.74 | C49: 111058.69 | D49: -67662.17 | E49: -80006.95 | F49: -14248.73 | G49: - | H49: -12810140.9
A50: Reinsurance Premiums Payable | B50: -33941820.22 | C50: - | D50: - | E50: - | F50: - | G50: - | H50: -33941820.22 | J50: =-H50 -> 33900000
A51: Trust Instruments Supported by Funding Obligations | B51: - | C51: - | D51: - | E51: - | F51: - | G51: - | H51: 0 | J51: 0
A52: Long-Term Debt | B52: -156008511 | C52: 0 | D52: - | E52: - | F52: - | G52: - | H52: -156008511 | J52: 156000000
A53: Deferred FIT | B53: - | C53: - | D53: - | E53: - | F53: - | G53: - | H53: 0 | J53: 0
A54: Separate Account Liabilities | B54: - | C54: - | D54: - | E54: - | F54: - | G54: - | H54: 0 | J54: 0
A55: Liabilities of Discontinued Operations | B55: -129400337.6 | C55: - | D55: - | E55: - | F55: - | G55: - | H55: -129400337.6 | J55: 129400000
A56: LIABILITY | B56: -5535325503 | C56: 586483.63 | D56: -996627.38 | E56: -1237986.29 | F56: -14570.14 | G56: - | H56: -5536988204 | J56: 5537000000
A58: Capital Stock Preferred | B58: 0 | C58: - | D58: - | E58: - | F58: - | G58: - | H58: =SUM(B58:G58) -> 0 | J58: =-H58 -> 0
A59: Capital Stock Common | B59: -1045.22 | C59: 574617.84 | D59: 0 | E59: -1000 | F59: - | G59: - | H59: 572572.62 | J59: -600000
A60: Additional Paid-In Capital | B60: -786608243.4 | C60: -2585520.98 | D60: -21240437.78 | E60: -7150000 | F60: - | G60: -1063928 | H60: -818648130.1 | J60: 818600000
A61: Treasury Stock Additional Paid-In Capital | B61: - | C61: - | D61: - | E61: - | F61: - | G61: - | H61: 0 | J61: 0
A62: Unrealized Capital Gains(Losses) | B62: -97235801.53 | C62: - | D62: 0.08 | E62: 0.01 | F62: - | G62: - | H62: -97235801.44 | J62: 97200000
A63: Retained Earnings | B63: -1614436459 | C63: 780318.29 | D63: 17554263.47 | E63: 278782.92 | F63: -59814.55 | G63: 103659.24 | H63: -1595779250 | J63: 1595800000
A64: Treasury Stock | B64: 0 | C64: - | D64: - | E64: - | F64: - | G64: - | H64: 0 | J64: 0
A65: Total Stockholders Equity | B65: -2498281549 | C65: -1230584.85 | D65: -3686174.23 | E65: -6872217.07 | F65: -59814.55 | G65: -960268.76 | H65: -2511090609 | J65: 2511100000

Sheet Proof-P&C (hidden)
A2: Property and Casualty
A3: =FORMQTR&", "&VALUE(CV) -> 
E4: =CQ&"' "&RIGHT(CV,2) ->  | G4: =CQ&"' "&RIGHT(PV,2) ->  | L4: ="YTD"&" "&RIGHT(CV,2) ->  | N4: ="YTD"&" "&RIGHT(PV,2) -> 
B5: Page #'s | E5: Variance | G5: Variance | I5: Page #'s | L5: Variance | N5: Variance
A7: Net investment income | B7: 7 | C7: 9 | E7: =+#REF!-#REF! ->  | G7: =+#REF!-#REF! ->  | I7: 7 | J7: 10 | L7: =+#REF!-#REF! ->  | N7: =+#REF!-#REF! -> 
A9: Segment Income Before Taxes:
A10: Personal Lines | B10: 1 | C10: 9 | E10: =+#REF!-#REF! ->  | G10: =+#REF!-#REF! ->  | I10: =+B10 -> 1 | J10: 10 | L10: =+#REF!-#REF! ->  | N10: =+#REF!-#REF! -> 
A11: Commercial Lines | B11: 1 | C11: =+C$10 -> 9 | E11: =+#REF!-#REF! ->  | G11: =+#REF!-#REF! ->  | I11: 1 | J11: =+J10 -> 10 | L11: =+#REF!-#REF! ->  | N11: =+#REF!-#REF! -> 
A12: Other P&C | B12: 1 | C12: =+C$10 -> 9 | E12: =+#REF!-#REF! ->  | G12: =+#REF!-#REF! ->  | I12: 1 | J12: =+J10 -> 10 | L12: =+#REF!-#REF! ->  | N12: =+#REF!-#REF! -> 
A13: Total P&C segment income | B13: 1 | C13: =+C$10 -> 9 | E13: =+#REF!-#REF! ->  | G13: =+#REF!-#REF! ->  | I13: 1 | J13: =+J10 -> 10 | L13: =+#REF!-#REF! ->  | N13: =+#REF!-#REF! -> 
A15: Segment income before taxes | B15: =+C7 -> 9 | C15: =+C10 -> 9 | E15: =+#REF!-#REF! ->  | G15: =+#REF!-#REF! ->  | I15: =+B15 -> 9 | J15: =+J10 -> 10 | L15: =+#REF!-#REF! ->  | N15: =+#REF!-#REF! -> 
A17: GAAP to Stat: Prior year reserve development:
A18: Personal auto | B18: =+C10 -> 9 | C18: Calc 20 | E18: =+#REF!-#REF! ->  | G18: =+#REF!-#REF! ->  | I18: =+J10 -> 10 | J18: calc 21 | L18: =+#REF!-#REF! ->  | N18: =+#REF!-#REF! -> 
A19: Homeowners | B19: =+B$18 -> 9 | C19: Calc 20 | E19: =+#REF!-#REF! ->  | G19: =+#REF!-#REF! ->  | I19: =+I$18 -> 10 | J19: calc 21 | L19: =+#REF!-#REF! ->  | N19: =+#REF!-#REF! -> 
A20: Other personal | B20: 9 | C20: Calc 20 | E20: =+#REF!-#REF! ->  | G20: =+#REF!-#REF! ->  | I20: 10 | J20: calc 21 | L20: =+#REF!-#REF! ->  | N20: =+#REF!-#REF! -> 
A21: Total personal | B21: 9 | C21: Calc 20 | E21: =+#REF!-#REF! ->  | G21: =+#REF!-#REF! ->  | I21: 10 | J21: calc 21 | L21: =+#REF!-#REF! ->  | N21: =+#REF!-#REF! -> 
A23: Workers compensation | B23: =+B$18 -> 9 | C23: Calc 20 | E23: =+#REF!-#REF! ->  | G23: =+#REF!-#REF! ->  | I23: =+I$18 -> 10 | J23: calc 21 | L23: =+#REF!-#REF! ->  | N23: =+#REF!-#REF! -> 
A24: Commercial Automobile | B24: 9 | C24: Calc 20 | E24: =+#REF!-#REF! ->  | G24: =+#REF!-#REF! ->  | I24: 10 | J24: calc 21 | L24: =+#REF!-#REF! ->  | N24: =+#REF!-#REF! -> 
A25: Commercial multiple peril | B25: 9 | C25: Calc 20 | E25: =+#REF!-#REF! ->  | G25: =+#REF!-#REF! ->  | I25: 10 | J25: calc 21 | L25: =+#REF!-#REF! ->  | N25: =+#REF!-#REF! -> 
A26: Other commercial lines | B26: 9 | C26: Calc 20 | E26: =+#REF!-#REF! ->  | G26: =+#REF!-#REF! ->  | I26: 10 | J26: calc 21 | L26: =+#REF!-#REF! ->  | N26: =+#REF!-#REF! -> 
A27: Total commericial | B27: 9 | C27: Calc 20 | E27: =+#REF!-#REF! ->  | G27: =+#REF!-#REF! ->  | I27: 10 | J27: calc 21 | L27: =+#REF!-#REF! ->  | N27: =+#REF!-#REF! -> 
A29: Other property and casualty | B29: =+B$18 -> 9 | C29: =+C$18 -> Calc 20 | E29: =+#REF!-#REF! ->  | G29: =+#REF!-#REF! ->  | I29: =+I$18 -> 10 | J29: =+J$18 -> calc 21 | L29: =+#REF!-#REF! ->  | N29: =+#REF!-#REF! -> 
A31: Total Property and Casualty | B31: =+B$18 -> 9 | C31: =+C$18 -> Calc 20 | E31: =+#REF!-#REF! ->  | G31: =+#REF!-#REF! ->  | I31: =+I$18 -> 10 | J31: =+J$18 -> calc 21 | L31: =+#REF!-#REF! ->  | N31: =+#REF!-#REF! -> 
A33: Net premiums written | B33: 7 | C33: 9 | E33: =+#REF!-#REF! ->  | G33: =+#REF!-#REF! ->  | I33: 7 | J33: 10 | L33: =+#REF!-#REF! ->  | N33: =+#REF!-#REF! -> 
A34: Net premiums earned | B34: =+B33 -> 7 | C34: =+C33 -> 9 | E34: =+#REF!-#REF! ->  | G34: =+#REF!-#REF! ->  | I34: =+I33 -> 7 | J34: =+J33 -> 10 | L34: =+#REF!-#REF! ->  | N34: =+#REF!-#REF! -> 
A35: Other Income | B35: =+B33 -> 7 | C35: =+C33 -> 9 | E35: =+#REF!-#REF! ->  | G35: =+#REF!-#REF! ->  | I35: =+I33 -> 7 | J35: =+J33 -> 10 | L35: =+#REF!-#REF! ->  | N35: =+#REF!-#REF! -> 
A36: Policy benefits, claims, losses and LAE | B36: =+B33 -> 7 | C36: =+C33 -> 9 | E36: =+#REF!-#REF!-#REF!-#REF!-#REF!-#REF!-#REF! ->  | G36: =+#REF!-#REF!-#REF!-#REF!-#REF!-#REF!-#REF! ->  | I36: =+I33 -> 7 | J36: =+J33 -> 10 | L36: =+#REF!-#REF!-#REF!-#REF!-#REF!-#REF!-#REF! ->  | N36: =+#REF!-#REF!-#REF!-#REF!-#REF!-#REF!-#REF! -> 
A37: Policy acquisition and other op ex | B37: =+B33 -> 7 | C37: =+C33 -> 9 | E37: =+#REF!+#REF!-#REF!+#REF! ->  | G37: =+#REF!+#REF!-#REF!+#REF! ->  | I37: =+I33 -> 7 | J37: =+J33 -> 10 | L37: =+#REF!+#REF!-#REF!+#REF! ->  | N37: =+#REF!+#REF!-#REF!+#REF! -> 

Sheet Proof-Inv. (hidden)
A2: Investments
A3: =FORMQTR&", "&VALUE(CV) -> 
K4: =CQ&"' "&RIGHT(CV,2) ->  | M4: =CQ&"' "&RIGHT(PV,2) ->  | R4: ="YTD"&" "&RIGHT(CV,2) ->  | T4: ="YTD"&" "&RIGHT(PV,2) -> 
H5: Page #'s | K5: Variance | M5: Variance | O5: Page #'s | R5: Variance | T5: Variance | V5: Notes
A6: Net Investment Income: | V6: Uses retrieves to verify the NII for the period.
A7: Total Company | H7: 4 | I7: 13, 14-Q1 | K7: =+'3'!C11-'13'!#REF! ->  | M7: =+'3'!E11-'13'!#REF! ->  | O7: 4 | P7: 13 | R7: =+'3'!#REF!-'13'!#REF! ->  | T7: =+'3'!#REF!-'13'!#REF! -> 
C8: =CY ->  | E8: =CY ->  | G8: =CY -> 
C9: =VALUE(CV)&" Actuals" ->  | E9: =VALUE(CV)&" Actuals" ->  | G9: =VALUE(PV)&" Actuals" -> 
C10: Net Investment Income- | E10: Net Investment Income- | G10: Net Investment Income-
C11: GAAP | E11: GAAP | G11: GAAP
C12: Product Qualifier | E12: Product Qualifier | G12: Product Qualifier
C13: Corporate-Capacity | E13: Corporate-Capacity | G13: Corporate-Capacity
C14: THG Consolidated | E14: THG Consolidated | G14: THG Consolidated
B15: Corporate Segment | C15: - | D15: Eliminations | E15: 0 | F15: Eliminations | G15: 0
C16: =(+C15)*-1 -> 
A18: Property and Casualty | H18: xxxxxxxxx | I18: xxxxxxxxx | K18: xxxxxxxxxxxxx | M18: xxxxxxxxxxxxx | O18: 5 | P18: =+P7 -> 13 | R18: =+#REF!-'13'!#REF!-'Proof-Inv.'!E15+'Proof-Inv.'!C16 ->  | T18: =+#REF!/1000000-'Proof-Inv.'!G15/1000000+'13'!#REF!/10000000 ->  | V18: P&C plus corp seg less elims = page 19
A19: Life Companies | H19: xxxxxxxxx | I19: xxxxxxxxx | K19: xxxxxxxxxxxxx | M19: xxxxxxxxxxxxx | O19: 12 | P19: =+P7 -> 13 | R19: =+#REF!-'13'!#REF! ->  | T19: =+#REF!-'13'!#REF! -> 
A21: Net realized investment gains | H21: =+O7 -> 4 | I21: 14 | K21: =+'3'!C12-#REF!*1000000 ->  | M21: =+'3'!E12-#REF!*1000000 ->  | O21: =+H21 -> 4 | P21: 14 | R21: =+'3'!#REF!-#REF!*1000000 ->  | T21: =+'3'!#REF!-#REF!*1000000 -> 
A23: Fixed maturities amortized cost:
A24: Life companies | H24: xxxxxxxxx | I24: xxxxxxxxx | K24: xxxxxxxxxxxxx | M24: xxxxxxxxxxxxx | O24: OLD14 | P24: 16 | R24: =+#REF!-'15'!#REF! ->  | T24: n/a
A25: Total | H25: xxxxxxxxx | I25: xxxxxxxxx | K25: xxxxxxxxxxxxx | M25: xxxxxxxxxxxxx | O25: 6 | P25: 16 | R25: =+#REF!-'15'!#REF! ->  | T25: =+#REF!-'15'!#REF! -> 
A27: Fixed maturities fair value:
A28: Life companies | H28: xxxxxxxxx | I28: xxxxxxxxx | K28: xxxxxxxxxxxxx | M28: xxxxxxxxxxxxx | O28: OLD14 | P28: 16 | R28: =+#REF!-'15'!#REF!*1000000 ->  | T28: n/a
A29: Total | H29: xxxxxxxxx | I29: xxxxxxxxx | K29: xxxxxxxxxxxxx | M29: xxxxxxxxxxxxx | O29: 6 | P29: 16 | R29: =+'4'!C10-('15'!#REF!-'15'!#REF!)*1000000 ->  | T29: =+'4'!E10-'15'!#REF!*1000000 -> 
A32: updated 08/03/2006 by SHA
A33: updated 7/24/08 by JPH

Sheet Proof-History (hidden)
A2: Historical Financial Highlights
A3: =FORMQTR&", "&VALUE(CV) ->  | C3: MANUALLY UPDATE CELL REFERENCES FOR QTR COLUMNS!!
E4: =CQ&"' "&RIGHT(CV,2) ->  | G4: =CQ&"' "&RIGHT(PV,2) ->  | I4: =CY&"' "&RIGHT(CV,2) ->  | K4: =CY&"' "&RIGHT(PV,2) -> 
B5: Page #'s | E5: Variance | G5: Variance | I5: Variance | K5: Variance
A6: SEGMENT INCOME:
A7: Property and Casualty
A8: Personal Lines | B8: 1 | C8: 19, 15Q1 | E8: =+#REF!-'17'!#REF! ->  | G8: =+#REF!-'17'!#REF! ->  | I8: =+#REF!-SUM('17'!F13:K13) ->  | K8: =+#REF!-SUM('17'!#REF!) -> 
A9: Commercial Lines | B9: 1 | C9: =+C8 -> 19, 15Q1 | E9: =+#REF!-'17'!#REF! ->  | G9: =+#REF!-'17'!#REF! ->  | I9: =+#REF!-SUM('17'!F12:K12) ->  | K9: =+#REF!-SUM('17'!#REF!) -> 
A10: Other | B10: 1 | C10: =+C8 -> 19, 15Q1 | E10: =+#REF!-'17'!#REF! ->  | G10: =+#REF!-'17'!#REF! ->  | I10: =+#REF!-SUM('17'!F15:K15) ->  | K10: =+#REF!-SUM('17'!#REF!) -> 
A11: Total Property and Casualty | B11: 1 | C11: =+C$8 -> 19, 15Q1 | E11: =+#REF!-'17'!#REF! ->  | G11: =+#REF!-'17'!#REF! ->  | I11: =+#REF!-SUM('17'!F16:K16) ->  | K11: =+#REF!-SUM('17'!#REF!) -> 
A12: Life Companies | B12: 1 | C12: =+C$8 -> 19, 15Q1 | E12: =+#REF!-'17'!#REF! ->  | G12: =+#REF!-'17'!#REF! ->  | I12: =+#REF!-SUM('17'!#REF!) ->  | K12: =+#REF!-SUM('17'!#REF!) -> 
A13: Corporate Debt | B13: 1 | C13: =+C$8 -> 19, 15Q1 | E13: =+#REF!-'17'!#REF! ->  | G13: =+#REF!-'17'!#REF! ->  | I13: =+#REF!-SUM('17'!F18:K18) ->  | K13: =+#REF!-SUM('17'!#REF!) -> 
A15: Total segment income before federal income taxes | B15: 1 | C15: =+C$8 -> 19, 15Q1 | E15: =+#REF!-'17'!#REF! ->  | G15: =+#REF!-'17'!#REF! ->  | I15: =+#REF!-SUM('17'!F20:K20) ->  | K15: =+#REF!-SUM('17'!#REF!) -> 
A17: Federal income tax (expense) benefit on segment income | B17: 1 | C17: =+C$8 -> 19, 15Q1 | E17: =+#REF!-'17'!#REF! ->  | G17: =+#REF!-'17'!#REF! ->  | I17: =+#REF!-SUM('17'!F22:K22) ->  | K17: =+#REF!-SUM('17'!#REF!) -> 
A18: Total segment income after federal income taxes | B18: 1 | C18: =+C$8 -> 19, 15Q1 | E18: =+#REF!-SUM('17'!#REF!) ->  | G18: =+#REF!-'17'!#REF! ->  | I18: =+#REF!-SUM('17'!F24:K24) ->  | K18: =+#REF!-SUM('17'!#REF!) -> 
A19: Change in prior years tax reserves | B19: 1 | C19: =+C$8 -> 19, 15Q1 | E19: =+#REF!-'17'!#REF! ->  | G19: =+#REF!-'17'!#REF! ->  | I19: =+#REF!-SUM('17'!#REF!) ->  | K19: =+#REF!-SUM('17'!#REF!) -> 
A20: Net realized investment gains (losses), net of amortization and taxes | B20: 1 | C20: =+C$8 -> 19, 15Q1 | E20: =+#REF!-'17'!#REF! ->  | G20: =+#REF!-'17'!#REF! ->  | I20: =+#REF!-SUM('17'!F25:K25) ->  | K20: =+#REF!-SUM('17'!#REF!) -> 
A21: (Losses) gains from retirement of funding agreements and trust
A22: instruments supported by funding obligations, net of taxes | B22: 1 | C22: =+C$8 -> 19, 15Q1 | E22: =SUM(#REF!)-SUM('17'!#REF!) ->  | G22: =+#REF!-'17'!#REF! ->  | I22: =+#REF!-SUM('17'!#REF!) ->  | K22: =+#REF!-SUM('17'!#REF!) -> 
A23: Restructuring costs, net of taxes | B23: 1 | C23: 19, 15Q1 | E23: =+#REF!-'17'!#REF! ->  | G23: =+#REF!-'17'!#REF! ->  | I23: =+#REF!-SUM('17'!#REF!) ->  | K23: =+#REF!-SUM('17'!#REF!) -> 
A24: Federal income tax expense on non-segment income | B24: 1 | C24: 19, 15Q1 | E24: =+#REF!-'17'!#REF! ->  | G24: =+#REF!-'17'!#REF! ->  | I24: =+#REF!-SUM('17'!F30:K30) ->  | K24: =+#REF!-SUM('17'!#REF!) -> 
A25: Income from continuing operations, net of taxes | B25: 1 | C25: 19, 15Q1 | E25: =+#REF!-'17'!#REF! ->  | G25: =+#REF!-'17'!#REF! ->  | I25: =+#REF!-SUM('17'!F31:K31) ->  | K25: =+#REF!-SUM('17'!#REF!) -> 
A27: Income from discontinued variable life insurance and
A28: annuity business, net of taxes | B28: 1 | C28: 19, 15Q1 | E28: =+#REF!-'17'!#REF! ->  | G28: =+#REF!-'17'!#REF! ->  | I28: =+#REF!-SUM('17'!#REF!) ->  | K28: =+#REF!-SUM('17'!#REF!) -> 
A29: (Loss) income from operations of discontiued FAFLIC | B29: 1 | C29: 19, 15Q1 | E29: =#REF!-'17'!#REF! ->  | G29: =#REF!-'17'!#REF! ->  | I29: =#REF!-'17'!#REF!-'17'!#REF! ->  | K29: =#REF!-'17'!#REF!-'17'!#REF! -> 
A30: Income from operations of AMGRO | B30: 1 | C30: 19, 15Q1 | E30: =#REF!-'17'!#REF! ->  | G30: =#REF!-'17'!#REF! ->  | I30: =#REF!-'17'!#REF!-'17'!#REF! ->  | K30: =#REF!-'17'!#REF!-'17'!#REF! ->  | M30: Amgro sale
A31: Loss on disposal of variable life insurance and annuity
A32: business, net of taxes | B32: 1 | C32: 19, 15Q1 | E32: =+#REF!-'17'!#REF! ->  | G32: =+#REF!-'17'!#REF! ->  | I32: =+#REF!-SUM('17'!#REF!) ->  | K32: =+#REF!-SUM('17'!#REF!) -> 
A33: Other | B33: 1 | C33: 19, 15Q1 | E33: =+#REF!-'17'!#REF! ->  | G33: =+#REF!-'17'!#REF! ->  | I33: =+#REF!-SUM('17'!#REF!) ->  | K33: =+#REF!-SUM('17'!#REF!) -> 
A34: Income before cumulative effect of accounting change | B34: 1 | C34: 19, 15Q1 | E34: =+#REF!-'17'!#REF! ->  | G34: =+#REF!-'17'!#REF! ->  | I34: =+#REF!-SUM('17'!#REF!) ->  | K34: =+#REF!-SUM('17'!#REF!) -> 
A35: Cumulative effect of change in accounting
A36: principle, net of taxes | B36: 1 | C36: 19, 15Q1 | E36: =SUM(#REF!)-SUM('17'!#REF!) ->  | G36: =+#REF!-'17'!#REF! ->  | I36: =+#REF!-SUM('17'!#REF!-'17'!#REF!) ->  | K36: =+#REF!-SUM('17'!#REF!) -> 
A37: Net income | B37: 1 | C37: 19, 15Q1 | E37: =+#REF!-'17'!#REF! ->  | G37: =+#REF!-'17'!#REF! ->  | I37: =+#REF!-SUM('17'!F34:K34) ->  | K37: =+#REF!-SUM('17'!#REF!) -> 
A39: PER SHARE DATA (DILUTED)
A40: INCOME (LOSS) FROM CONTINUING OPERATIONS | B40: 2 | C40: =+C$8 -> 19, 15Q1 | E40: =+#REF!-'17'!#REF! ->  | G40: =+#REF!-'17'!#REF! ->  | I40: n/a | K40: n/a
A41: (LOSS) INCOME FROM DISCONTINUED OPERATIONS,
A42: NET OF TAXES | B42: 2 | C42: =+C$8 -> 19, 15Q1 | E42: =+#REF!+#REF!-'17'!#REF! ->  | G42: =+#REF!+#REF!-'17'!#REF! ->  | I42: n/a | K42: n/a
A43: NET INCOME (LOSS) | B43: 2 | C43: =+C$8 -> 19, 15Q1 | E43: =+#REF!-'17'!#REF! ->  | G43: =+#REF!-'17'!#REF! ->  | I43: n/a | K43: n/a
A45: WEIGHTED AVERAGE SHARES
A46: OUTSTANDING (DILUTED) | B46: 5 | C46: =+C$8 -> 19, 15Q1 | E46: =+#REF!-'17'!#REF! ->  | G46: =+#REF!-'17'!#REF! ->  | I46: n/a | K46: n/a
A48: BALANCE SHEET: | E48: =CQ&"' "&RIGHT(CV,2) ->  | G48: PY End
A49: Total investments | B49: 6 | C49: =+C$8 -> 19, 15Q1 | E49: =+'4'!C13-'17'!#REF! ->  | G49: =+'4'!E13-'17'!#REF! ->  | I49: n/a | K49: n/a
A50: Separate account assets | B50: 6 | C50: =+C$8 -> 19, 15Q1 | E50: =+'4'!#REF!-'17'!#REF! ->  | G50: =+'4'!#REF!-'17'!#REF! ->  | I50: n/a | K50: n/a
A51: Total assets | B51: 6 | C51: =+C$8 -> 19, 15Q1 | E51: =+'4'!C23-'17'!#REF! ->  | G51: =+'4'!E23-'17'!#REF! ->  | I51: n/a | K51: n/a
A52: Total shareholders' equity | B52: 6 | C52: =+C$8 -> 19, 15Q1 | E52: =+'4'!C45-'17'!#REF! ->  | G52: =+'4'!E45-'17'!#REF! ->  | I52: n/a | K52: n/a
A53: Book value per share | B53: 3 | C53: =+C$8 -> 19, 15Q1 | E53: =SUM(#REF!)-SUM('17'!#REF!) ->  | G53: =+#REF!-'17'!#REF! ->  | I53: n/a | K53: n/a
A54: Book value per share, excluding accumulated
A55: other comprehensive income | B55: 3 | C55: =+C$8 -> 19, 15Q1 | E55: =SUM(#REF!)-SUM('17'!#REF!) ->  | G55: =+#REF!-'17'!#REF! ->  | I55: n/a | K55: n/a
A57: updated Q4-07 &06 columns, CP 12-14-07

Sheet Ver Doc 2.2 (hidden)
A2: Name of Spreadsheet | C2: Stat Supp Working File - Pages 3(P&L) and 4(BS), 5(P&C Segment Income)
C3: 12(Life Segment Income) are used for SEC External Reporting
A5: Drive & Directory Location | C5: Homcfaf1\vol5\Stat Supp\Year\Quarter
A7: Date Created; Most Recent Change Date | C7: 2001-04-20 | D7: 2006-03-30
A9: Version # | C9: 2.2
A11: Spreadsheet Owner; Contact Info | C11: Sandra Aramony; saramony@allmerica.com
A13: Total # of Users; # of Users outside Dept. | C13: 8; none
A15: Frequency of Change:
B16: Formula/Calculations | C16: quarterly
B17: Input/Data Changes | C17: quarterly
A19: Purpose of model logic/formulas: | C19: Summarizes financial information from the general ledger and formats
C20: it for the Statistical Supplement. Also used to produce the Balance Sheet
C21: P&L and other financial statement disclosures
A23: Operating instructions for use/input: | C23: The pages are updated through an Essbase retrieve program. Use "Run" tab to
C24: select pages for which you want to retrieve information by entering "y" in the Run cell.
C25: After retrieve, compare information to Product Reports, Production Reports. Enter
C26: rounding in the shaded columns to the right of the page, if necessary.
C27: All manual input of information is entered on Input, Calc, or Footnote tabs. There is no manual
C28: input on actual stat supp pages.
C29: Use Proof tabs to check balancing.
A31: Historical/Standing data | C31: Prior Quarter\Prior Year
A33: Complex Functions or Links | C33: Macros are used to retrieve information from the ledger and to print the entire document.
A35: Input Integrity Checks | C35: Same as output integrity checks below
A37: Output Integrity Checks | C37: Reviewed by 2 individuals; beginning balances agreed to prior period analysis;
C38: data agreed to the general ledger; manual recalculations performed on a test basis
A40: Cell & Formula Protection | C40: None
A42: Access Protection | C42: Access restricted to Afgaap on Homcfaf1\Vol 5

Sheet Ver Doc 2.1 (hidden)
A2: Name of Spreadsheet | C2: Stat Supp Working File - Pages 3(P&L) and 4(BS), 5(P&C Segment Income)
C3: 12(Life Segment Income) are used for SEC External Reporting
A5: Drive & Directory Location | C5: Homcfaf1\vol5\Stat Supp\Year\Quarter
A7: Date Created; Most Recent Change Date | C7: 2001-04-20 | D7: 2005-12-30
A9: Version # | C9: 2.1
A11: Spreadsheet Owner; Contact Info | C11: Sandra Aramony; saramony@allmerica.com
A13: Total # of Users; # of Users outside Dept. | C13: 8; none
A15: Frequency of Change:
B16: Formula/Calculations | C16: quarterly
B17: Input/Data Changes | C17: quarterly
A19: Purpose of model logic/formulas: | C19: Summarizes financial information from the general ledger and formats
C20: it for the Statistical Supplement. Also used to produce the Balance Sheet
C21: P&L and other financial statement disclosures
A23: Operating instructions for use/input: | C23: The pages are updated through an Essbase retrieve program. Use "Run" tab to
C24: select pages for which you want to retrieve information by entering "y" in the Run cell.
C25: After retrieve, compare information to Product Reports, Production Reports. Enter
C26: rounding in the shaded columns to the right of the page, if necessary.
C27: All manual input of information is entered on Input, Calc, or Footnote tabs. There is no manual
C28: input on actual stat supp pages.
C29: Use Proof tabs to check balancing.
A31: Historical/Standing data | C31: Prior Quarter\Prior Year
A33: Complex Functions or Links | C33: Macros are used to retrieve information from the ledger and to print the entire document.
A35: Input Integrity Checks | C35: Same as output integrity checks below
A37: Output Integrity Checks | C37: Reviewed by 2 individuals; beginning balances agreed to prior period analysis;
C38: data agreed to the general ledger; manual recalculations performed on a test basis
A40: Cell & Formula Protection | C40: None
A42: Access Protection | C42: Access restricted to Afgaap on Homcfaf1\Vol 5

Sheet Ver Doc 2.0 (hidden)
A2: Name of Spreadsheet | C2: Stat Supp Working File - Pages 3(P&L) and 4(BS), 5(P&C Segment Income)
C3: 12(Life Segment Income) are used for SEC External Reporting
A5: Drive & Directory Location | C5: Homcfaf1\vol5\Stat Supp\Year\Quarter
A7: Date Created; Most Recent Change Date | C7: 2001-04-20 | D7: 2005-01-19
A9: Version # | C9: 2
A11: Spreadsheet Owner; Contact Info | C11: Sandra Aramony; saramony@allmerica.com
A13: Total # of Users; # of Users outside Dept. | C13: 8; none
A15: Frequency of Change:
B16: Formula/Calculations | C16: quarterly
B17: Input/Data Changes | C17: quarterly
A19: Purpose of model logic/formulas: | C19: Summarizes financial information from the general ledger and formats
C20: it for the Statistical Supplement. Also used to produce the Balance Sheet
C21: P&L and other financial statement disclosures
A23: Operating instructions for use/input: | C23: The pages are updated through an Essbase retrieve program. Use "Run" tab to
C24: select pages for which you want to retrieve information by entering "y" in the Run cell.
C25: After retrieve, compare information to Product Reports, Production Reports. Enter
C26: rounding in the shaded columns to the right of the page, if necessary.
C27: All manual input of information is entered on Input, Calc, or Footnote tabs. There is no manual
C28: input on actual stat supp pages.
C29: Use Proof tabs to check balancing.
A31: Historical/Standing data | C31: Prior Quarter\Prior Year
A33: Complex Functions or Links | C33: Macros are used to retrieve information from the ledger and to print the entire document.
A35: Input Integrity Checks | C35: Same as output integrity checks below
A37: Output Integrity Checks | C37: Reviewed by 2 individuals; beginning balances agreed to prior period analysis;
C38: data agreed to the general ledger; manual recalculations performed on a test basis
A40: Cell & Formula Protection | C40: None
A42: Access Protection | C42: Access restricted to Afgaap on Homcfaf1\Vol 5

Sheet Ver Doc 1.0 (hidden)
A2: Name of Spreadsheet | C2: Stat Supp Working File - Pages 3(P&L) and 4(BS), 5(P&C Segment Income)
C3: 12(Life Segment Income) are used for SEC External Reporting
A5: Drive & Directory Location | C5: Homcfaf1\vol5\Stat Supp\Year\Quarter
A7: Date Created; Most Recent Change Date | C7: 2001-04-20
A9: Version # | C9: 1
A11: Spreadsheet Owner; Contact Info | C11: Sandra Aramony; saramony@allmerica.com
A13: Total # of Users; # of Users outside Dept. | C13: 8; none
A15: Frequency of Change:
B16: Formula/Calculations | C16: quarterly
B17: Input/Data Changes | C17: quarterly
A19: Purpose of model logic/formulas: | C19: Summarizes financial information from the general ledger and formats
C20: it for the Statistical Supplement. Also used to produce the Balance Sheet
C21: P&L and other financial statement disclosures
A23: Operating instructions for use/input: | C23: The pages are updated through an Essbase retrieve program with limited
C24: manual manipulation of numbers.
A26: Historical/Standing data | C26: Prior Quarter\Prior Year
A28: Complex Functions or Links | C28: Macros are used to retrieve information from the ledger
A30: Input Integrity Checks | C30: Same as output integrity checks below
A32: Output Integrity Checks | C32: Reviewed by 2 individuals; beginning balances agreed to prior period analysis;
C33: data agreed to the general ledger; manual recalculations performed on a test basis
A35: Cell & Formula Protection | C35: None
A37: Access Protection | C37: Access restricted to Afgaap on Homcfaf1\Vol 5

Sheet Ver Doc (hidden)
A2: Name of Spreadsheet | C2: Stat Supp Working File - Pages 3(P&L) and 4(BS), 5(P&C Segment Income)
C3: 12(Life Segment Income) are used for SEC External Reporting
A5: Drive & Directory Location | C5: Homcfaf1\vol5\Stat Supp\Year\Quarter
A7: Date Created; Most Recent Change Date | C7: 2001-04-20
A9: Version # | C9: 1.0
A11: Spreadsheet Owner; Contact Info | C11: Sandra Aramony; saramony@allmerica.com
A13: Total # of Users; # of Users outside Dept. | C13: 8; none
A15: Frequency of Change:
B16: Formula/Calculations | C16: quarterly
B17: Input/Data Changes | C17: quarterly
A19: Purpose of model logic/formulas: | C19: Summarizes financial information from the general ledger and formats
C20: it for the Statistical Supplement. Also used to produce the Balance Sheet
C21: P&L and other financial statement disclosures
A23: Operating instructions for use/input: | C23: The pages are updated through an Essbase retrieve program with limited
C24: manual manipulation of numbers.
A26: Historical/Standing data | C26: Prior Quarter\Prior Year
A28: Complex Functions or Links | C28: Macros are used to retrieve information from the ledger
A30: Input Integrity Checks | C30: Same as output integrity checks below
A32: Output Integrity Checks | C32: Reviewed by 2 individuals; beginning balances agreed to prior period analysis;
C33: data agreed to the general ledger; manual recalculations performed on a test basis
A35: Cell & Formula Protection | C35: None
A37: Access Protection | C37: Access restricted to Afgaap on Homcfaf1\Vol 5
